Workbook

Sheet 入力シート
D1: Time | E1: Time | F1: Activity No
C2: 1 | D2: =C2*3 -> 3 | E2: 3 | L2: =F2&"-"&F3 -> - | O2: 1~10 | P2: 11~20 | Q2: 21~30 | R2: 31~40 | S2: 41~50
C3: 2 | D3: =C3*3 -> 6 | E3: 6 | L3: - | N3: 1,2 | O3: =COUNTIF($F$2:$F$201,1)+COUNTIF($F$2:$F$201,2) -> 0 | P3: =COUNTIF($F$202:$F$401,1)+COUNTIF($F$202:$F$401,2) -> 0 | Q3: =COUNTIF($F$402:$F$601,1)+COUNTIF($F$402:$F$601,2) -> 0 | R3: =COUNTIF($F$602:$F$801,1)+COUNTIF($F$602:$F$801,2) -> 0 | S3: =COUNTIF($F$802:$F$1001,1)+COUNTIF($F$802:$F$1001,2) -> 0
C4: 3 | D4: 9 | E4: 9 | L4: - | N4: 9 | O4: =COUNTIF($F$2:$F$201,9) -> 0 | P4: =COUNTIF($F$202:$F$401,9) -> 0 | Q4: =COUNTIF($F$402:$F$601,9) -> 0 | R4: =COUNTIF($F$602:$F$801,9) -> 0 | S4: =COUNTIF($F$802:$F$1001,9) -> 0
C5: 4 | D5: =C5*3 -> 12 | E5: 12 | L5: - | N5: 3 | O5: =COUNTIF($F$2:$F$201,3) -> 0 | P5: =COUNTIF($F$202:$F$401,3) -> 0 | Q5: =COUNTIF($F$402:$F$601,3) -> 0 | R5: =COUNTIF($F$602:$F$801,3) -> 0 | S5: =COUNTIF($F$802:$F$1001,3) -> 0
C6: 5 | D6: =C6*3 -> 15 | E6: 15 | L6: - | N6: 5 | O6: =COUNTIF($F$2:$F$201,5) -> 0 | P6: =COUNTIF($F$202:$F$401,5) -> 0 | Q6: =COUNTIF($F$402:$F$601,5) -> 0 | R6: =COUNTIF($F$602:$F$801,5) -> 0 | S6: =COUNTIF($F$802:$F$1001,5) -> 0
C7: 6 | D7: 18 | E7: 18 | L7: - | N7: 4 | O7: =COUNTIF($F$2:$F$201,4) -> 0 | P7: =COUNTIF($F$202:$F$401,4) -> 0 | Q7: =COUNTIF($F$402:$F$601,4) -> 0 | R7: =COUNTIF($F$602:$F$801,4) -> 0 | S7: =COUNTIF($F$802:$F$1001,4) -> 0
C8: 7 | D8: 21 | E8: 21 | L8: - | N8: 8 | O8: =COUNTIF($F$2:$F$201,8) -> 0 | P8: =COUNTIF($F$202:$F$401,8) -> 0 | Q8: =COUNTIF($F$402:$F$601,8) -> 0 | R8: =COUNTIF($F$602:$F$801,8) -> 0 | S8: =COUNTIF($F$802:$F$1001,8) -> 0
C9: 8 | D9: 24 | E9: 24 | L9: - | N9: 6,7 | O9: =COUNTIF($F$2:$F$201,6)+COUNTIF($F$2:$F$201,7) -> 0 | P9: =COUNTIF($F$202:$F$401,6)+COUNTIF($F$202:$F$401,7) -> 0 | Q9: =COUNTIF($F$402:$F$601,6)+COUNTIF($F$402:$F$601,7) -> 0 | R9: =COUNTIF($F$602:$F$8011,6)+COUNTIF($F$602:$F$801,7) -> 0 | S9: =COUNTIF($F$802:$F$1001,6)+COUNTIF($F$802:$F$1001,7) -> 0
C10: 9 | D10: 27 | E10: 27 | L10: - | N10: 10 | O10: =COUNTIF($F$2:$F$201,10) -> 0 | P10: =COUNTIF($F$202:$F$401,10) -> 0 | Q10: =COUNTIF($F$402:$F$601,10) -> 0 | R10: =COUNTIF($F$602:$F$801,10) -> 0 | S10: =COUNTIF($F$802:$F$1001,10) -> 0
C11: 10 | D11: 30 | E11: 30 | L11: -
C12: 11 | D12: 33 | E12: 33 | L12: - | N12: 11,12 | O12: =COUNTIF($F$2:$F$201,11)+COUNTIF($F$2:$F$201,12) -> 0 | P12: =COUNTIF($F$202:$F$401,11)+COUNTIF($F$202:$F$401,12) -> 0 | Q12: =COUNTIF($F$402:$F$601,11)+COUNTIF($F$402:$F$601,12) -> 0 | R12: =COUNTIF($F$602:$F$801,11)+COUNTIF($F$602:$F$801,12) -> 0 | S12: =COUNTIF($F$802:$F$1001,11)+COUNTIF($F$802:$F$1001,12) -> 0
C13: 12 | D13: 36 | E13: 36 | L13: - | N13: 19 | O13: =COUNTIF($F$2:$F$201,19) -> 0 | P13: =COUNTIF($F$202:$F$401,19) -> 0 | Q13: =COUNTIF($F$402:$F$601,19) -> 0 | R13: =COUNTIF($F$602:$F$801,19) -> 0 | S13: =COUNTIF($F$802:$F$1001,19) -> 0
C14: 13 | D14: 39 | E14: 39 | L14: - | N14: 13 | O14: =COUNTIF($F$2:$F$201,13) -> 0 | P14: =COUNTIF($F$202:$F$401,13) -> 0 | Q14: =COUNTIF($F$402:$F$601,13) -> 0 | R14: =COUNTIF($F$602:$F$801,13) -> 0 | S14: =COUNTIF($F$802:$F$1001,13) -> 0
C15: 14 | D15: 42 | E15: 42 | L15: - | N15: 15 | O15: =COUNTIF($F$2:$F$201,15) -> 0 | P15: =COUNTIF($F$202:$F$401,15) -> 0 | Q15: =COUNTIF($F$402:$F$601,15) -> 0 | R15: =COUNTIF($F$602:$F$801,15) -> 0 | S15: =COUNTIF($F$802:$F$1001,15) -> 0
C16: 15 | D16: 45 | E16: 45 | L16: - | N16: 14 | O16: =COUNTIF($F$2:$F$201,14) -> 0 | P16: =COUNTIF($F$202:$F$401,14) -> 0 | Q16: =COUNTIF($F$402:$F$601,14) -> 0 | R16: =COUNTIF($F$602:$F$801,14) -> 0 | S16: =COUNTIF($F$802:$F$1001,14) -> 0
C17: 16 | D17: 48 | E17: 48 | L17: - | N17: 18 | O17: =COUNTIF($F$2:$F$201,18) -> 0 | P17: =COUNTIF($F$202:$F$401,18) -> 0 | Q17: =COUNTIF($F$402:$F$601,18) -> 0 | R17: =COUNTIF($F$602:$F$801,18) -> 0 | S17: =COUNTIF($F$802:$F$1001,18) -> 0
C18: 17 | D18: 51 | E18: 51 | L18: - | N18: 16,17 | O18: =COUNTIF($F$2:$F$201,16)+COUNTIF($F$2:$F$201,17) -> 0 | P18: =COUNTIF($F$202:$F$401,16)+COUNTIF($F$202:$F$401,17) -> 0 | Q18: =COUNTIF($F$402:$F$601,16)+COUNTIF($F$402:$F$601,17) -> 0 | R18: =COUNTIF($F$602:$F$801,16)+COUNTIF($F$602:$F$801,17) -> 0 | S18: =COUNTIF($F$802:$F$1001,16)+COUNTIF($F$802:$F$1001,17) -> 0
C19: 18 | D19: 54 | E19: 54 | L19: - | N19: 20 | O19: =COUNTIF($F$2:$F$201,20) -> 0 | P19: =COUNTIF($F$202:$F$401,20) -> 0 | Q19: =COUNTIF($F$402:$F$601,20) -> 0 | R19: =COUNTIF($F$602:$F$801,20) -> 0 | S19: =COUNTIF($F$802:$F$1001,20) -> 0
C20: 19 | D20: 57 | E20: 57 | L20: -
B21: 1分 | C21: 20 | D21: 60 | E21: 60 | L21: -
C22: 21 | D22: =C22*3 -> 63 | E22: 3 | L22: -
C23: 22 | D23: =C23*3 -> 66 | E23: 6 | L23: -
C24: 23 | D24: 69 | E24: 9 | L24: -
C25: 24 | D25: =C25*3 -> 72 | E25: 12 | L25: -
C26: 25 | D26: 75 | E26: 15 | L26: -
C27: 26 | D27: 78 | E27: 18 | L27: -
C28: 27 | D28: 81 | E28: 21 | L28: -
C29: 28 | D29: 84 | E29: 24 | L29: -
C30: 29 | D30: 87 | E30: 27 | L30: -
C31: 30 | D31: 90 | E31: 30 | L31: -
C32: 31 | D32: 93 | E32: 33 | L32: -
C33: 32 | D33: 96 | E33: 36 | L33: -
C34: 33 | D34: 99 | E34: 39 | L34: -
C35: 34 | D35: 102 | E35: 42 | L35: -
C36: 35 | D36: 105 | E36: 45 | L36: -
C37: 36 | D37: 108 | E37: 48 | L37: -
C38: 37 | D38: 111 | E38: 51 | L38: -
C39: 38 | D39: 114 | E39: 54 | L39: -
C40: 39 | D40: 117 | E40: 57 | L40: -
B41: 2分 | C41: 40 | D41: 120 | E41: 60 | L41: -
C42: 41 | D42: 123 | E42: 3 | L42: -
C43: 42 | D43: 126 | E43: 6 | L43: -
C44: 43 | D44: 129 | E44: 9 | L44: -
C45: 44 | D45: 132 | E45: 12 | L45: -
C46: 45 | D46: 135 | E46: 15 | L46: -
C47: 46 | D47: 138 | E47: 18 | L47: -
C48: 47 | D48: 141 | E48: 21 | L48: -
C49: 48 | D49: 144 | E49: 24 | L49: -
C50: 49 | D50: 147 | E50: 27 | L50: -
C51: 50 | D51: 150 | E51: 30 | L51: -
C52: 51 | D52: 153 | E52: 33 | L52: -
C53: 52 | D53: 156 | E53: 36 | L53: -
C54: 53 | D54: 159 | E54: 39 | L54: -
C55: 54 | D55: 162 | E55: 42 | L55: -
C56: 55 | D56: 165 | E56: 45 | L56: -
C57: 56 | D57: 168 | E57: 48 | L57: -
C58: 57 | D58: 171 | E58: 51 | L58: -
C59: 58 | D59: 174 | E59: 54 | L59: -
C60: 59 | D60: 177 | E60: 57 | L60: -
B61: 3分 | C61: 60 | D61: 180 | E61: 60 | L61: -
C62: 61 | D62: 183 | E62: 3 | L62: -
C63: 62 | D63: 186 | E63: 6 | L63: -
C64: 63 | D64: 189 | E64: 9 | L64: -
C65: 64 | D65: 192 | E65: 12 | L65: -
C66: 65 | D66: 195 | E66: 15 | L66: -
C67: 66 | D67: 198 | E67: 18 | L67: =F67&"-"&F68 -> -
C68: 67 | D68: 201 | E68: 21 | L68: -
C69: 68 | D69: 204 | E69: 24 | L69: -
C70: 69 | D70: =C70*3 -> 207 | E70: 27 | L70: -
C71: 70 | D71: 210 | E71: 30 | L71: -
C72: 71 | D72: 213 | E72: 33 | L72: -
C73: 72 | D73: 216 | E73: 36 | L73: -
C74: 73 | D74: 219 | E74: 39 | L74: -
C75: 74 | D75: 222 | E75: 42 | L75: -
C76: 75 | D76: 225 | E76: 45 | L76: -
C77: 76 | D77: 228 | E77: 48 | L77: -
C78: 77 | D78: 231 | E78: 51 | L78: -
C79: 78 | D79: 234 | E79: 54 | L79: -
C80: 79 | D80: 237 | E80: 57 | L80: -
B81: 4分 | C81: 80 | D81: 240 | E81: 60 | L81: -
C82: 81 | D82: 243 | E82: 3 | L82: -
C83: 82 | D83: 246 | E83: 6 | L83: -
B84: whatday | C84: 83 | D84: 249 | E84: 9 | L84: -
B85: 1min | C85: 84 | D85: 252 | E85: 12 | L85: -
B86: pair | C86: 85 | D86: 255 | E86: 15 | L86: -
C87: 86 | D87: 258 | E87: 18 | L87: -
C88: 87 | D88: 261 | E88: 21 | L88: -
C89: 88 | D89: 264 | E89: 24 | L89: -
C90: 89 | D90: 267 | E90: 27 | L90: -
C91: 90 | D91: 270 | E91: 30 | L91: -
C92: 91 | D92: 273 | E92: 33 | L92: -
C93: 92 | D93: 276 | E93: 36 | L93: -
C94: 93 | D94: 279 | E94: 39 | L94: -
C95: 94 | D95: 282 | E95: 42 | L95: -
C96: 95 | D96: 285 | E96: 45 | L96: -
C97: 96 | D97: 288 | E97: 48 | L97: -
C98: 97 | D98: 291 | E98: 51 | L98: -
C99: 98 | D99: 294 | E99: 54 | L99: -
C100: 99 | D100: 297 | E100: 57 | L100: -
B101: 5分 | C101: 100 | D101: 300 | E101: 60 | L101: -
C102: 101 | D102: 303 | E102: 3 | L102: -
C103: 102 | D103: 306 | E103: 6 | L103: -
B104: whatday | C104: 103 | D104: 309 | E104: 9 | L104: -
B105: 30sec | C105: 104 | D105: 312 | E105: 12 | L105: -
B106: teacher | C106: 105 | D106: 315 | E106: 15 | L106: -
C107: 106 | D107: 318 | E107: 18 | L107: -
C108: 107 | D108: 321 | E108: 21 | L108: -
C109: 108 | D109: 324 | E109: 24 | L109: -
C110: 109 | D110: 327 | E110: 27 | L110: -
C111: 110 | D111: 330 | E111: 30 | L111: -
C112: 111 | D112: 333 | E112: 33 | L112: -
C113: 112 | D113: 336 | E113: 36 | L113: -
C114: 113 | D114: 339 | E114: 39 | L114: -
C115: 114 | D115: 342 | E115: 42 | L115: -
C116: 115 | D116: 345 | E116: 45 | L116: -
C117: 116 | D117: 348 | E117: 48 | L117: -
C118: 117 | D118: 351 | E118: 51 | L118: -
C119: 118 | D119: 354 | E119: 54 | L119: -
C120: 119 | D120: 357 | E120: 57 | L120: -
B121: 6分 | C121: 120 | D121: 360 | E121: 60 | L121: -
C122: 121 | D122: 363 | E122: 3 | L122: -
C123: 122 | D123: 366 | E123: 6 | L123: -
C124: 123 | D124: 369 | E124: 9 | L124: -
C125: 124 | D125: 372 | E125: 12 | L125: -
C126: 125 | D126: 375 | E126: 15 | L126: -
C127: 126 | D127: 378 | E127: 18 | L127: -
C128: 127 | D128: 381 | E128: 21 | L128: -
C129: 128 | D129: 384 | E129: 24 | L129: -
C130: 129 | D130: 387 | E130: 27 | L130: -
C131: 130 | D131: 390 | E131: 30 | L131: =F131&"-"&F132 -> -
C132: 131 | D132: 393 | E132: 33 | L132: -
C133: 132 | D133: 396 | E133: 36 | L133: -
C134: 133 | D134: =C134*3 -> 399 | E134: 39 | L134: -
C135: 134 | D135: 402 | E135: 42 | L135: -
C136: 135 | D136: 405 | E136: 45 | L136: -
C137: 136 | D137: 408 | E137: 48 | L137: -
C138: 137 | D138: 411 | E138: 51 | L138: -
B139: BINGO | C139: 138 | D139: 414 | E139: 54 | L139: -
B140: read&repeat | C140: 139 | D140: 417 | E140: 57 | L140: -
B141: 7分 | C141: 140 | D141: 420 | E141: 60 | L141: -
C142: 141 | D142: 423 | E142: 3 | L142: -
C143: 142 | D143: 426 | E143: 6 | L143: -
C144: 143 | D144: 429 | E144: 9 | L144: -
C145: 144 | D145: 432 | E145: 12 | L145: -
C146: 145 | D146: 435 | E146: 15 | L146: -
C147: 146 | D147: 438 | E147: 18 | L147: -
C148: 147 | D148: 441 | E148: 21 | L148: -
C149: 148 | D149: 444 | E149: 24 | L149: -
C150: 149 | D150: 447 | E150: 27 | L150: -
C151: 150 | D151: 450 | E151: 30 | L151: -
C152: 151 | D152: 453 | E152: 33 | L152: -
C153: 152 | D153: 456 | E153: 36 | L153: -
C154: 153 | D154: 459 | E154: 39 | L154: -
C155: 154 | D155: 462 | E155: 42 | L155: -
C156: 155 | D156: 465 | E156: 45 | L156: -
C157: 156 | D157: 468 | E157: 48 | L157: -
C158: 157 | D158: 471 | E158: 51 | L158: -
C159: 158 | D159: 474 | E159: 54 | L159: -
C160: 159 | D160: 477 | E160: 57 | L160: -
B161: 8分 | C161: 160 | D161: 480 | E161: 60 | L161: -
C162: 161 | D162: 483 | E162: 3 | L162: -
C163: 162 | D163: 486 | E163: 6 | L163: -
C164: 163 | D164: 489 | E164: 9 | L164: -
C165: 164 | D165: 492 | E165: 12 | L165: -
C166: 165 | D166: 495 | E166: 15 | L166: -
C167: 166 | D167: 498 | E167: 18 | L167: -
C168: 167 | D168: 501 | E168: 21 | L168: -
B169: gamestart | C169: 168 | D169: 504 | E169: 24 | L169: -
C170: 169 | D170: 507 | E170: 27 | L170: -
C171: 170 | D171: 510 | E171: 30 | L171: -
C172: 171 | D172: 513 | E172: 33 | L172: -
C173: 172 | D173: 516 | E173: 36 | L173: -
C174: 173 | D174: 519 | E174: 39 | L174: -
C175: 174 | D175: 522 | E175: 42 | L175: -
C176: 175 | D176: 525 | E176: 45 | L176: -
C177: 176 | D177: 528 | E177: 48 | L177: -
C178: 177 | D178: 531 | E178: 51 | L178: -
C179: 178 | D179: 534 | E179: 54 | L179: -
C180: 179 | D180: 537 | E180: 57 | L180: -
B181: 9分 | C181: 180 | D181: 540 | E181: 60 | L181: -
C182: 181 | D182: 543 | E182: 3 | L182: -
C183: 182 | D183: 546 | E183: 6 | L183: -
C184: 183 | D184: 549 | E184: 9 | L184: -
C185: 184 | D185: 552 | E185: 12 | L185: -
C186: 185 | D186: 555 | E186: 15 | L186: -
C187: 186 | D187: 558 | E187: 18 | L187: -
C188: 187 | D188: 561 | E188: 21 | L188: -
C189: 188 | D189: 564 | E189: 24 | L189: -
C190: 189 | D190: 567 | E190: 27 | L190: -
C191: 190 | D191: 570 | E191: 30 | L191: -
C192: 191 | D192: 573 | E192: 33 | L192: -
C193: 192 | D193: 576 | E193: 36 | L193: -
C194: 193 | D194: 579 | E194: 39 | L194: -
C195: 194 | D195: 582 | E195: 42 | L195: =F195&"-"&F196 -> -
C196: 195 | D196: 585 | E196: 45 | L196: -
C197: 196 | D197: 588 | E197: 48 | L197: -
C198: 197 | D198: =C198*3 -> 591 | E198: 51 | L198: -
C199: 198 | D199: 594 | E199: 54 | L199: -
C200: 199 | D200: 597 | E200: 57 | L200: -
... 801 more rows

Sheet 分析シート１（粗頻度）
A1: カテゴリー粗頻度 | D1: （論文表示用）
C2: 日本語 | M2: 英語
C3: 教師の発言 | J3: 生徒の発言 | L3: 沈黙 | M3: 教師の発言 | T3: 生徒の発言 | V3: 沈黙
A4: カテゴリー | C4: 1 | D4: 2 | E4: 3 | F4: 4 | G4: 5 | H4: 6 | I4: 7 | J4: 8 | K4: 9 | L4: 10 | M4: 11 | N4: 12 | O4: 13 | P4: 14 | Q4: 15 | R4: 16 | S4: 17 | T4: 18 | U4: 19 | V4: 20 | W4: 計
A5: 頻度 | C5: =COUNTIF(入力シート!$F$2:$F$1001,1) -> 0 | D5: =COUNTIF(入力シート!$F$2:$F$1001,2) -> 0 | E5: =COUNTIF(入力シート!$F$2:$F$1001,3) -> 0 | F5: =COUNTIF(入力シート!$F$2:$F$1001,4) -> 0 | G5: =COUNTIF(入力シート!$F$2:$F$1001,5) -> 0 | H5: =COUNTIF(入力シート!$F$2:$F$1001,6) -> 0 | I5: =COUNTIF(入力シート!$F$2:$F$1001,7) -> 0 | J5: =COUNTIF(入力シート!$F$2:$F$1001,8) -> 0 | K5: =COUNTIF(入力シート!$F$2:$F$1001,9) -> 0 | L5: =COUNTIF(入力シート!$F$2:$F$1001,10) -> 0 | M5: =COUNTIF(入力シート!$F$2:$F$1001,11) -> 0 | N5: =COUNTIF(入力シート!$F$2:$F$1001,12) -> 0 | O5: =COUNTIF(入力シート!$F$2:$F$1001,13) -> 0 | P5: =COUNTIF(入力シート!$F$2:$F$1001,14) -> 0 | Q5: =COUNTIF(入力シート!$F$2:$F$1001,15) -> 0 | R5: =COUNTIF(入力シート!$F$2:$F$1001,16) -> 0 | S5: =COUNTIF(入力シート!$F$2:$F$1001,17) -> 0 | T5: =COUNTIF(入力シート!$F$2:$F$1001,18) -> 0 | U5: =COUNTIF(入力シート!$F$2:$F$1001,19) -> 0 | V5: =COUNTIF(入力シート!$F$2:$F$1001,20) -> 0 | W5: =SUM(C5:V5) -> 0
A7: カテゴリー粗頻度 | D7: （分析用）
B9: CT | C9: FR | D9: %
A10: 教師の発言 | B10: 1 | C10: =C5 -> 0 | D10: =C10/$C$32*100 ->  | W10: CT | X10: JP | Y10: EN
B11: 2 | C11: =D5 -> 0 | W11: 1(11) | X11: =D10 ->  | Y11: =D21 -> 
B12: 3 | C12: =E5 -> 0 | W12: 2(12) | X12: =D11 -> 
B13: 4 | C13: =F5 -> 0 | W13: 3(13)
B14: 5 | C14: =G5 -> 0 | W14: 4(14)
B15: 6 | C15: =H5 -> 0 | W15: 5(15)
B16: 7 | C16: =I5 -> 0 | W16: 6(16)
A17: 生徒の発言 | B17: 8 | C17: =J5 -> 0 | W17: 7(17)
B18: 9 | C18: =K5 -> 0 | W18: 8(18)
A19: 沈黙 | B19: 10 | C19: =L5 -> 0 | W19: 9(19)
A20: 日本語計 | C20: =SUM(C10:C19) -> 0 | D20: =C20/W5*100 ->  | W20: 10(20)
A21: 教師の発言 | B21: 11 | C21: =M5 -> 0 | D21: =C21/$C$32*100 -> 
B22: 12 | C22: =N5 -> 0
B23: 13 | C23: =O5 -> 0
B24: 14 | C24: =P5 -> 0
B25: 15 | C25: =Q5 -> 0
B26: 16 | C26: =R5 -> 0
B27: 17 | C27: =S5 -> 0
A28: 生徒の発言 | B28: 18 | C28: =T5 -> 0
B29: 19 | C29: =U5 -> 0
A30: 沈黙 | B30: 20 | C30: =V5 -> 0
A31: 英語計 | C31: =SUM(C21:C30) -> 0 | D31: =C31/W5*100 -> 
B32: 計 | C32: =SUM(C10:C19,C21:C29) -> 0 | D32: =C32/$C$32*100 -> 

Sheet 分析シート２（分布図）
A1: カテゴリー分布図
B2: 1 | C2: 2 | D2: 3 | E2: 4 | F2: 5 | G2: 6 | H2: 7 | I2: 8 | J2: 9 | K2: 10 | L2: 11 | M2: 12 | N2: 13 | O2: 14 | P2: 15 | Q2: 16 | R2: 17 | S2: 18 | T2: 19 | U2: 20 | Y2: 日本語 | AI2: 英語
A3: 1 | B3: =COUNTIF(入力シート!$L$2:$L$1000,"1-1") -> 0 | C3: =COUNTIF(入力シート!$L$2:$L$1000,"1-2") -> 0 | D3: =COUNTIF(入力シート!$L$2:$L$1000,"1-3") -> 0 | E3: =COUNTIF(入力シート!$L$2:$L$1000,"1-4") -> 0 | F3: =COUNTIF(入力シート!$L$2:$L$1000,"1-5") -> 0 | G3: =COUNTIF(入力シート!$L$2:$L$1000,"1-6") -> 0 | H3: =COUNTIF(入力シート!$L$2:$L$1000,"1-7") -> 0 | I3: =COUNTIF(入力シート!$L$2:$L$1000,"1-8") -> 0 | J3: =COUNTIF(入力シート!$L$2:$L$1000,"1-9") -> 0 | K3: =COUNTIF(入力シート!$L$2:$L$1000,"1-10") -> 0 | L3: =COUNTIF(入力シート!$L$2:$L$1000,"1-11") -> 0 | M3: =COUNTIF(入力シート!$L$2:$L$1000,"1-12") -> 0 | N3: =COUNTIF(入力シート!$L$2:$L$1000,"1-13") -> 0 | O3: =COUNTIF(入力シート!$L$2:$L$1000,"1-14") -> 0 | P3: =COUNTIF(入力シート!$L$2:$L$1000,"1-15") -> 0 | Q3: =COUNTIF(入力シート!$L$2:$L$1000,"1-16") -> 0 | R3: =COUNTIF(入力シート!$L$2:$L$1000,"1-17") -> 0 | S3: =COUNTIF(入力シート!$L$2:$L$1000,"1-18") -> 0 | T3: =COUNTIF(入力シート!$L$2:$L$1000,"1-19") -> 0 | U3: =COUNTIF(入力シート!$L$2:$L$1000,"1-20") -> 0 | Y3: 教師の発言 | AF3: 生徒の発言 | AH3: 沈黙 | AI3: 教師の発言 | AP3: 生徒の発言 | AR3: 沈黙
A4: 2 | B4: =COUNTIF(入力シート!$L$2:$L$1000,"2-1") -> 0 | C4: =COUNTIF(入力シート!$L$2:$L$1000,"2-2") -> 0 | D4: =COUNTIF(入力シート!$L$2:$L$1000,"2-3") -> 0 | E4: =COUNTIF(入力シート!$L$2:$L$1000,"2-4") -> 0 | F4: =COUNTIF(入力シート!$L$2:$L$1000,"2-5") -> 0 | G4: =COUNTIF(入力シート!$L$2:$L$1000,"2-6") -> 0 | H4: =COUNTIF(入力シート!$L$2:$L$1000,"2-7") -> 0 | I4: =COUNTIF(入力シート!$L$2:$L$1000,"2-8") -> 0 | J4: =COUNTIF(入力シート!$L$2:$L$1000,"2-9") -> 0 | K4: =COUNTIF(入力シート!$L$2:$L$1000,"2-10") -> 0 | L4: =COUNTIF(入力シート!$L$2:$L$1000,"2-11") -> 0 | M4: =COUNTIF(入力シート!$L$2:$L$1000,"2-12") -> 0 | N4: =COUNTIF(入力シート!$L$2:$L$1000,"2-13") -> 0 | O4: =COUNTIF(入力シート!$L$2:$L$1000,"2-14") -> 0 | P4: =COUNTIF(入力シート!$L$2:$L$1000,"2-15") -> 0 | Q4: =COUNTIF(入力シート!$L$2:$L$1000,"2-16") -> 0 | R4: =COUNTIF(入力シート!$L$2:$L$1000,"2-17") -> 0 | S4: =COUNTIF(入力シート!$L$2:$L$1000,"2-18") -> 0 | T4: =COUNTIF(入力シート!$L$2:$L$1000,"2-19") -> 0 | U4: =COUNTIF(入力シート!$L$2:$L$1000,"2-20") -> 0 | W4: カテゴリー | Y4: 1 | Z4: 2 | AA4: 3 | AB4: 4 | AC4: 5 | AD4: 6 | AE4: 7 | AF4: 8 | AG4: 9 | AH4: 10 | AI4: 11 | AJ4: 12 | AK4: 13 | AL4: 14 | AM4: 15 | AN4: 16 | AO4: 17 | AP4: 18 | AQ4: 19 | AR4: 20 | AS4: 計
A5: 3 | B5: =COUNTIF(入力シート!$L$2:$L$1000,"3-1") -> 0 | C5: =COUNTIF(入力シート!$L$2:$L$1000,"3-2") -> 0 | D5: =COUNTIF(入力シート!$L$2:$L$1000,"3-3") -> 0 | E5: =COUNTIF(入力シート!$L$2:$L$1000,"3-4") -> 0 | F5: =COUNTIF(入力シート!$L$2:$L$1000,"3-5") -> 0 | G5: =COUNTIF(入力シート!$L$2:$L$1000,"3-6") -> 0 | H5: =COUNTIF(入力シート!$L$2:$L$1000,"3-7") -> 0 | I5: =COUNTIF(入力シート!$L$2:$L$1000,"3-8") -> 0 | J5: =COUNTIF(入力シート!$L$2:$L$1000,"3-9") -> 0 | K5: =COUNTIF(入力シート!$L$2:$L$1000,"3-10") -> 0 | L5: =COUNTIF(入力シート!$L$2:$L$1000,"3-11") -> 0 | M5: =COUNTIF(入力シート!$L$2:$L$1000,"3-12") -> 0 | N5: =COUNTIF(入力シート!$L$2:$L$1000,"3-13") -> 0 | O5: =COUNTIF(入力シート!$L$2:$L$1000,"3-14") -> 0 | P5: =COUNTIF(入力シート!$L$2:$L$1000,"3-15") -> 0 | Q5: =COUNTIF(入力シート!$L$2:$L$1000,"3-16") -> 0 | R5: =COUNTIF(入力シート!$L$2:$L$1000,"3-17") -> 0 | S5: =COUNTIF(入力シート!$L$2:$L$1000,"3-18") -> 0 | T5: =COUNTIF(入力シート!$L$2:$L$1000,"3-19") -> 0 | U5: =COUNTIF(入力シート!$L$2:$L$1000,"3-20") -> 0 | W5: 頻度 | Y5: =COUNTIF(入力シート!$F$2:$F$1001,1) -> 0 | Z5: =COUNTIF(入力シート!$F$2:$F$1001,2) -> 0 | AA5: =COUNTIF(入力シート!$F$2:$F$1001,3) -> 0 | AB5: =COUNTIF(入力シート!$F$2:$F$1001,4) -> 0 | AC5: =COUNTIF(入力シート!$F$2:$F$1001,5) -> 0 | AD5: =COUNTIF(入力シート!$F$2:$F$1001,6) -> 0 | AE5: =COUNTIF(入力シート!$F$2:$F$1001,7) -> 0 | AF5: =COUNTIF(入力シート!$F$2:$F$1001,8) -> 0 | AG5: =COUNTIF(入力シート!$F$2:$F$1001,9) -> 0 | AH5: =COUNTIF(入力シート!$F$2:$F$1001,10) -> 0 | AI5: =COUNTIF(入力シート!$F$2:$F$1001,11) -> 0 | AJ5: =COUNTIF(入力シート!$F$2:$F$1001,12) -> 0 | AK5: =COUNTIF(入力シート!$F$2:$F$1001,13) -> 0 | AL5: =COUNTIF(入力シート!$F$2:$F$1001,14) -> 0 | AM5: =COUNTIF(入力シート!$F$2:$F$1001,15) -> 0 | AN5: =COUNTIF(入力シート!$F$2:$F$1001,16) -> 0 | AO5: =COUNTIF(入力シート!$F$2:$F$1001,17) -> 0 | AP5: =COUNTIF(入力シート!$F$2:$F$1001,18) -> 0 | AQ5: =COUNTIF(入力シート!$F$2:$F$1001,19) -> 0 | AR5: =COUNTIF(入力シート!$F$2:$F$1001,20) -> 0 | AS5: =SUM(Y5:AR5) -> 0
A6: 4 | B6: =COUNTIF(入力シート!$L$2:$L$1000,"4-1") -> 0 | C6: =COUNTIF(入力シート!$L$2:$L$1000,"4-2") -> 0 | D6: =COUNTIF(入力シート!$L$2:$L$1000,"4-3") -> 0 | E6: =COUNTIF(入力シート!$L$2:$L$1000,"4-4") -> 0 | F6: =COUNTIF(入力シート!$L$2:$L$1000,"4-5") -> 0 | G6: =COUNTIF(入力シート!$L$2:$L$1000,"4-6") -> 0 | H6: =COUNTIF(入力シート!$L$2:$L$1000,"4-7") -> 0 | I6: =COUNTIF(入力シート!$L$2:$L$1000,"4-8") -> 0 | J6: =COUNTIF(入力シート!$L$2:$L$1000,"4-9") -> 0 | K6: =COUNTIF(入力シート!$L$2:$L$1000,"4-10") -> 0 | L6: =COUNTIF(入力シート!$L$2:$L$1000,"4-11") -> 0 | M6: =COUNTIF(入力シート!$L$2:$L$1000,"4-12") -> 0 | N6: =COUNTIF(入力シート!$L$2:$L$1000,"4-13") -> 0 | O6: =COUNTIF(入力シート!$L$2:$L$1000,"4-14") -> 0 | P6: =COUNTIF(入力シート!$L$2:$L$1000,"4-15") -> 0 | Q6: =COUNTIF(入力シート!$L$2:$L$1000,"4-16") -> 0 | R6: =COUNTIF(入力シート!$L$2:$L$1000,"4-17") -> 0 | S6: =COUNTIF(入力シート!$L$2:$L$1000,"4-18") -> 0 | T6: =COUNTIF(入力シート!$L$2:$L$1000,"4-19") -> 0 | U6: =COUNTIF(入力シート!$L$2:$L$1000,"4-20") -> 0
A7: 5 | B7: =COUNTIF(入力シート!$L$2:$L$1000,"5-1") -> 0 | C7: =COUNTIF(入力シート!$L$2:$L$1000,"5-2") -> 0 | D7: =COUNTIF(入力シート!$L$2:$L$1000,"5-3") -> 0 | E7: =COUNTIF(入力シート!$L$2:$L$1000,"5-4") -> 0 | F7: =COUNTIF(入力シート!$L$2:$L$1000,"5-5") -> 0 | G7: =COUNTIF(入力シート!$L$2:$L$1000,"5-6") -> 0 | H7: =COUNTIF(入力シート!$L$2:$L$1000,"5-7") -> 0 | I7: =COUNTIF(入力シート!$L$2:$L$1000,"5-8") -> 0 | J7: =COUNTIF(入力シート!$L$2:$L$1000,"5-9") -> 0 | K7: =COUNTIF(入力シート!$L$2:$L$1000,"5-10") -> 0 | L7: =COUNTIF(入力シート!$L$2:$L$1000,"5-11") -> 0 | M7: =COUNTIF(入力シート!$L$2:$L$1000,"5-12") -> 0 | N7: =COUNTIF(入力シート!$L$2:$L$1000,"5-13") -> 0 | O7: =COUNTIF(入力シート!$L$2:$L$1000,"5-14") -> 0 | P7: =COUNTIF(入力シート!$L$2:$L$1000,"5-15") -> 0 | Q7: =COUNTIF(入力シート!$L$2:$L$1000,"5-16") -> 0 | R7: =COUNTIF(入力シート!$L$2:$L$1000,"5-17") -> 0 | S7: =COUNTIF(入力シート!$L$2:$L$1000,"5-18") -> 0 | T7: =COUNTIF(入力シート!$L$2:$L$1000,"5-19") -> 0 | U7: =COUNTIF(入力シート!$L$2:$L$1000,"5-20") -> 0 | Y7: Total | Z7: % | AA7: TT | AB7: PT | AC7: SC | AD7: TTR | AE7: TQR | AF7: PIR | AG7: TTR89 | AH7: TQR89 | AI7: CCR | AJ7: SSR | AK7: PSSR
A8: 6 | B8: =COUNTIF(入力シート!$L$2:$L$1000,"6-1") -> 0 | C8: =COUNTIF(入力シート!$L$2:$L$1000,"6-2") -> 0 | D8: =COUNTIF(入力シート!$L$2:$L$1000,"6-3") -> 0 | E8: =COUNTIF(入力シート!$L$2:$L$1000,"6-4") -> 0 | F8: =COUNTIF(入力シート!$L$2:$L$1000,"6-5") -> 0 | G8: =COUNTIF(入力シート!$L$2:$L$1000,"6-6") -> 0 | H8: =COUNTIF(入力シート!$L$2:$L$1000,"6-7") -> 0 | I8: =COUNTIF(入力シート!$L$2:$L$1000,"6-8") -> 0 | J8: =COUNTIF(入力シート!$L$2:$L$1000,"6-9") -> 0 | K8: =COUNTIF(入力シート!$L$2:$L$1000,"6-10") -> 0 | L8: =COUNTIF(入力シート!$L$2:$L$1000,"6-11") -> 0 | M8: =COUNTIF(入力シート!$L$2:$L$1000,"6-12") -> 0 | N8: =COUNTIF(入力シート!$L$2:$L$1000,"6-13") -> 0 | O8: =COUNTIF(入力シート!$L$2:$L$1000,"6-14") -> 0 | P8: =COUNTIF(入力シート!$L$2:$L$1000,"6-15") -> 0 | Q8: =COUNTIF(入力シート!$L$2:$L$1000,"6-16") -> 0 | R8: =COUNTIF(入力シート!$L$2:$L$1000,"6-17") -> 0 | S8: =COUNTIF(入力シート!$L$2:$L$1000,"6-18") -> 0 | T8: =COUNTIF(入力シート!$L$2:$L$1000,"6-19") -> 0 | U8: =COUNTIF(入力シート!$L$2:$L$1000,"6-20") -> 0 | W8: 日本語 | Y8: =SUM(B3:K12) -> 0 | Z8: =Y8*100/SUM($Y$8:$Y$10) ->  | AA8: =SUM(B3:H9)*100/SUM(B3:K12) ->  | AB8: =(SUM(B10:J11)+SUM(I3:J9))*100/SUM(B3:K12) ->  | AC8: =(SUM(B12:K12)+SUM(K3:K11))*100/Y8 ->  | AD8: =SUM(Y5:AA5)*100/(Y5+Z5+AA5+AD5+AE5) ->  | AE8: =AB5*100/SUM(AB5:AC5) ->  | AF8: =AG5*100/(AF5+AG5) ->  | AG8: =SUM(B10:D11)*100/(SUM(B10:D11)+SUM(G10:H11)) ->  | AH8: =(E10+E11)*100/SUM(E10:F11) ->  | AI8: =(SUM(B6:K7)+SUM(E3:F5)+SUM(E8:F12))*100/Y8 ->  | AJ8: =(B3+C4+D5+E6+F7+G8+H9+I10+J11+K12)*100/Y8 ->  | AK8: =(I10+J11)*100/(SUM(B10:K11)+SUM(I3:J9)+SUM(I12:J12)) -> 
A9: 7 | B9: =COUNTIF(入力シート!$L$2:$L$1000,"7-1") -> 0 | C9: =COUNTIF(入力シート!$L$2:$L$1000,"7-2") -> 0 | D9: =COUNTIF(入力シート!$L$2:$L$1000,"7-3") -> 0 | E9: =COUNTIF(入力シート!$L$2:$L$1000,"7-4") -> 0 | F9: =COUNTIF(入力シート!$L$2:$L$1000,"7-5") -> 0 | G9: =COUNTIF(入力シート!$L$2:$L$1000,"7-6") -> 0 | H9: =COUNTIF(入力シート!$L$2:$L$1000,"7-7") -> 0 | I9: =COUNTIF(入力シート!$L$2:$L$1000,"7-8") -> 0 | J9: =COUNTIF(入力シート!$L$2:$L$1000,"7-9") -> 0 | K9: =COUNTIF(入力シート!$L$2:$L$1000,"7-10") -> 0 | L9: =COUNTIF(入力シート!$L$2:$L$1000,"7-11") -> 0 | M9: =COUNTIF(入力シート!$L$2:$L$1000,"7-12") -> 0 | N9: =COUNTIF(入力シート!$L$2:$L$1000,"7-13") -> 0 | O9: =COUNTIF(入力シート!$L$2:$L$1000,"7-14") -> 0 | P9: =COUNTIF(入力シート!$L$2:$L$1000,"7-15") -> 0 | Q9: =COUNTIF(入力シート!$L$2:$L$1000,"7-16") -> 0 | R9: =COUNTIF(入力シート!$L$2:$L$1000,"7-17") -> 0 | S9: =COUNTIF(入力シート!$L$2:$L$1000,"7-18") -> 0 | T9: =COUNTIF(入力シート!$L$2:$L$1000,"7-19") -> 0 | U9: =COUNTIF(入力シート!$L$2:$L$1000,"7-20") -> 0 | W9: 英語 | Y9: =SUM(L13:U22) -> 0 | Z9: =Y9*100/SUM($Y$8:$Y$10) ->  | AA9: =SUM(L13:R19)*100/SUM(L13:U22) ->  | AB9: =(SUM(L20:T21)+SUM(S13:T19))*100/Y9 ->  | AC9: =(SUM(L22:U22)+SUM(U13:U21))*100/Y9 ->  | AD9: =SUM(AI5:AK5)*100/(AI5+AJ5+AK5+AN5+AO5) ->  | AE9: =AL5*100/(AL5+AM5) ->  | AF9: =AQ5*100/(AP5+AQ5) ->  | AG9: =SUM(L20:N21)*100/(SUM(L20:N21)+SUM(Q20:R21)) ->  | AH9: =(O20+O21)*100/SUM(O20:P21) ->  | AI9: =(SUM(L16:U17)+SUM(O13:P15)+SUM(O18:P22))*100/Y9 ->  | AJ9: =(L13+M14+N15+O16+P17+Q18+R19+S20+T21+U22)*100/Y9 ->  | AK9: =(S20+T21)*100/(SUM(L20:U21)+SUM(S13:T19)+SUM(S22:T22)) -> 
A10: 8 | B10: =COUNTIF(入力シート!$L$2:$L$1000,"8-1") -> 0 | C10: =COUNTIF(入力シート!$L$2:$L$1000,"8-2") -> 0 | D10: =COUNTIF(入力シート!$L$2:$L$1000,"8-3") -> 0 | E10: =COUNTIF(入力シート!$L$2:$L$1000,"8-4") -> 0 | F10: =COUNTIF(入力シート!$L$2:$L$1000,"8-5") -> 0 | G10: =COUNTIF(入力シート!$L$2:$L$1000,"8-6") -> 0 | H10: =COUNTIF(入力シート!$L$2:$L$1000,"8-7") -> 0 | I10: =COUNTIF(入力シート!$L$2:$L$1000,"8-8") -> 0 | J10: =COUNTIF(入力シート!$L$2:$L$1000,"8-9") -> 0 | K10: =COUNTIF(入力シート!$L$2:$L$1000,"8-10") -> 0 | L10: =COUNTIF(入力シート!$L$2:$L$1000,"8-11") -> 0 | M10: =COUNTIF(入力シート!$L$2:$L$1000,"8-12") -> 0 | N10: =COUNTIF(入力シート!$L$2:$L$1000,"8-13") -> 0 | O10: =COUNTIF(入力シート!$L$2:$L$1000,"8-14") -> 0 | P10: =COUNTIF(入力シート!$L$2:$L$1000,"8-15") -> 0 | Q10: =COUNTIF(入力シート!$L$2:$L$1000,"8-16") -> 0 | R10: =COUNTIF(入力シート!$L$2:$L$1000,"8-17") -> 0 | S10: =COUNTIF(入力シート!$L$2:$L$1000,"8-18") -> 0 | T10: =COUNTIF(入力シート!$L$2:$L$1000,"8-19") -> 0 | U10: =COUNTIF(入力シート!$L$2:$L$1000,"8-20") -> 0 | W10: 日本語・英語 | Y10: =SUM(L3:U12)+SUM(B13:K22) -> 0 | Z10: =Y10*100/SUM($Y$8:$Y$10) ->  | AA10: =(SUM(L3:R9)+SUM(B13:H19))*100/Y10 ->  | AB10: =(SUM(L10:T11)+SUM(S3:T9)+SUM(B20:J21)+SUM(I13:J19)*100/Y10) ->  | AC10: =(SUM(L12:U12)+SUM(U3:U11)+SUM(B22:K22)+SUM(K13:K21))*100/Y10 ->  | AG10: =(SUM(L10:N11)+SUM(B20:D21))*100/(SUM(L10:N11)+SUM(Q10:R11)+SUM(B20:D21)+SUM(G20:H21)) ->  | AH10: =(O10+O11+E20+E21)*100/(SUM(O10:P11)+SUM(E20:F21)) ->  | AI10: =(SUM(L6:U7)+SUM(O3:P5)+SUM(O8:P12)+SUM(E13:F22)+SUM(B16:D17)+SUM(G16:K17))*100/Y10 ->  | AJ10: =(L3+M4+N5+O6+P7+Q8+R9+S10+T11+U12+B13+C14+D15+E16+F17+G18+H19+I20+J21+K22)*100/Y10 ->  | AK10: =(S10+T11+I20+J21)*100/(SUM(L10:U11)+SUM(S3:T9)+SUM(S12:T12)+SUM(B20:K21)+SUM(I13:J19)+SUM(I22:J22)) -> 
A11: 9 | B11: =COUNTIF(入力シート!$L$2:$L$1000,"9-1") -> 0 | C11: =COUNTIF(入力シート!$L$2:$L$1000,"9-2") -> 0 | D11: =COUNTIF(入力シート!$L$2:$L$1000,"9-3") -> 0 | E11: =COUNTIF(入力シート!$L$2:$L$1000,"9-4") -> 0 | F11: =COUNTIF(入力シート!$L$2:$L$1000,"9-5") -> 0 | G11: =COUNTIF(入力シート!$L$2:$L$1000,"9-6") -> 0 | H11: =COUNTIF(入力シート!$L$2:$L$1000,"9-7") -> 0 | I11: =COUNTIF(入力シート!$L$2:$L$1000,"9-8") -> 0 | J11: =COUNTIF(入力シート!$L$2:$L$1000,"9-9") -> 0 | K11: =COUNTIF(入力シート!$L$2:$L$1000,"9-10") -> 0 | L11: =COUNTIF(入力シート!$L$2:$L$1000,"9-11") -> 0 | M11: =COUNTIF(入力シート!$L$2:$L$1000,"9-12") -> 0 | N11: =COUNTIF(入力シート!$L$2:$L$1000,"9-13") -> 0 | O11: =COUNTIF(入力シート!$L$2:$L$1000,"9-14") -> 0 | P11: =COUNTIF(入力シート!$L$2:$L$1000,"9-15") -> 0 | Q11: =COUNTIF(入力シート!$L$2:$L$1000,"9-16") -> 0 | R11: =COUNTIF(入力シート!$L$2:$L$1000,"9-17") -> 0 | S11: =COUNTIF(入力シート!$L$2:$L$1000,"9-18") -> 0 | T11: =COUNTIF(入力シート!$L$2:$L$1000,"9-19") -> 0 | U11: =COUNTIF(入力シート!$L$2:$L$1000,"9-20") -> 0
A12: 10 | B12: =COUNTIF(入力シート!$L$2:$L$1000,"10-1") -> 0 | C12: =COUNTIF(入力シート!$L$2:$L$1000,"10-2") -> 0 | D12: =COUNTIF(入力シート!$L$2:$L$1000,"10-3") -> 0 | E12: =COUNTIF(入力シート!$L$2:$L$1000,"10-4") -> 0 | F12: =COUNTIF(入力シート!$L$2:$L$1000,"10-5") -> 0 | G12: =COUNTIF(入力シート!$L$2:$L$1000,"10-6") -> 0 | H12: =COUNTIF(入力シート!$L$2:$L$1000,"10-7") -> 0 | I12: =COUNTIF(入力シート!$L$2:$L$1000,"10-8") -> 0 | J12: =COUNTIF(入力シート!$L$2:$L$1000,"10-9") -> 0 | K12: =COUNTIF(入力シート!$L$2:$L$1000,"10-10") -> 0 | L12: =COUNTIF(入力シート!$L$2:$L$1000,"10-11") -> 0 | M12: =COUNTIF(入力シート!$L$2:$L$1000,"10-12") -> 0 | N12: =COUNTIF(入力シート!$L$2:$L$1000,"10-13") -> 0 | O12: =COUNTIF(入力シート!$L$2:$L$1000,"10-14") -> 0 | P12: =COUNTIF(入力シート!$L$2:$L$1000,"10-15") -> 0 | Q12: =COUNTIF(入力シート!$L$2:$L$1000,"10-16") -> 0 | R12: =COUNTIF(入力シート!$L$2:$L$1000,"10-17") -> 0 | S12: =COUNTIF(入力シート!$L$2:$L$1000,"10-18") -> 0 | T12: =COUNTIF(入力シート!$L$2:$L$1000,"10-19") -> 0 | U12: =COUNTIF(入力シート!$L$2:$L$1000,"10-20") -> 0
A13: 11 | B13: =COUNTIF(入力シート!$L$2:$L$1000,"11-1") -> 0 | C13: =COUNTIF(入力シート!$L$2:$L$1000,"11-2") -> 0 | D13: =COUNTIF(入力シート!$L$2:$L$1000,"11-3") -> 0 | E13: =COUNTIF(入力シート!$L$2:$L$1000,"11-4") -> 0 | F13: =COUNTIF(入力シート!$L$2:$L$1000,"11-5") -> 0 | G13: =COUNTIF(入力シート!$L$2:$L$1000,"11-6") -> 0 | H13: =COUNTIF(入力シート!$L$2:$L$1000,"11-7") -> 0 | I13: =COUNTIF(入力シート!$L$2:$L$1000,"11-8") -> 0 | J13: =COUNTIF(入力シート!$L$2:$L$1000,"11-9") -> 0 | K13: =COUNTIF(入力シート!$L$2:$L$1000,"11-10") -> 0 | L13: =COUNTIF(入力シート!$L$2:$L$1000,"11-11") -> 0 | M13: =COUNTIF(入力シート!$L$2:$L$1000,"11-12") -> 0 | N13: =COUNTIF(入力シート!$L$2:$L$1000,"11-13") -> 0 | O13: =COUNTIF(入力シート!$L$2:$L$1000,"11-14") -> 0 | P13: =COUNTIF(入力シート!$L$2:$L$1000,"11-15") -> 0 | Q13: =COUNTIF(入力シート!$L$2:$L$1000,"11-16") -> 0 | R13: =COUNTIF(入力シート!$L$2:$L$1000,"11-17") -> 0 | S13: =COUNTIF(入力シート!$L$2:$L$1000,"11-18") -> 0 | T13: =COUNTIF(入力シート!$L$2:$L$1000,"11-19") -> 0 | U13: =COUNTIF(入力シート!$L$2:$L$1000,"11-20") -> 0
A14: 12 | B14: =COUNTIF(入力シート!$L$2:$L$1000,"12-1") -> 0 | C14: =COUNTIF(入力シート!$L$2:$L$1000,"12-2") -> 0 | D14: =COUNTIF(入力シート!$L$2:$L$1000,"12-3") -> 0 | E14: =COUNTIF(入力シート!$L$2:$L$1000,"12-4") -> 0 | F14: =COUNTIF(入力シート!$L$2:$L$1000,"12-5") -> 0 | G14: =COUNTIF(入力シート!$L$2:$L$1000,"12-6") -> 0 | H14: =COUNTIF(入力シート!$L$2:$L$1000,"12-7") -> 0 | I14: =COUNTIF(入力シート!$L$2:$L$1000,"12-8") -> 0 | J14: =COUNTIF(入力シート!$L$2:$L$1000,"12-9") -> 0 | K14: =COUNTIF(入力シート!$L$2:$L$1000,"12-10") -> 0 | L14: =COUNTIF(入力シート!$L$2:$L$1000,"12-11") -> 0 | M14: =COUNTIF(入力シート!$L$2:$L$1000,"12-12") -> 0 | N14: =COUNTIF(入力シート!$L$2:$L$1000,"12-13") -> 0 | O14: =COUNTIF(入力シート!$L$2:$L$1000,"12-14") -> 0 | P14: =COUNTIF(入力シート!$L$2:$L$1000,"12-15") -> 0 | Q14: =COUNTIF(入力シート!$L$2:$L$1000,"12-16") -> 0 | R14: =COUNTIF(入力シート!$L$2:$L$1000,"12-17") -> 0 | S14: =COUNTIF(入力シート!$L$2:$L$1000,"12-18") -> 0 | T14: =COUNTIF(入力シート!$L$2:$L$1000,"12-19") -> 0 | U14: =COUNTIF(入力シート!$L$2:$L$1000,"12-20") -> 0
A15: 13 | B15: =COUNTIF(入力シート!$L$2:$L$1000,"13-1") -> 0 | C15: =COUNTIF(入力シート!$L$2:$L$1000,"13-2") -> 0 | D15: =COUNTIF(入力シート!$L$2:$L$1000,"13-3") -> 0 | E15: =COUNTIF(入力シート!$L$2:$L$1000,"13-4") -> 0 | F15: =COUNTIF(入力シート!$L$2:$L$1000,"13-5") -> 0 | G15: =COUNTIF(入力シート!$L$2:$L$1000,"13-6") -> 0 | H15: =COUNTIF(入力シート!$L$2:$L$1000,"13-7") -> 0 | I15: =COUNTIF(入力シート!$L$2:$L$1000,"13-8") -> 0 | J15: =COUNTIF(入力シート!$L$2:$L$1000,"13-9") -> 0 | K15: =COUNTIF(入力シート!$L$2:$L$1000,"13-10") -> 0 | L15: =COUNTIF(入力シート!$L$2:$L$1000,"13-11") -> 0 | M15: =COUNTIF(入力シート!$L$2:$L$1000,"13-12") -> 0 | N15: =COUNTIF(入力シート!$L$2:$L$1000,"13-13") -> 0 | O15: =COUNTIF(入力シート!$L$2:$L$1000,"13-14") -> 0 | P15: =COUNTIF(入力シート!$L$2:$L$1000,"13-15") -> 0 | Q15: =COUNTIF(入力シート!$L$2:$L$1000,"13-16") -> 0 | R15: =COUNTIF(入力シート!$L$2:$L$1000,"13-17") -> 0 | S15: =COUNTIF(入力シート!$L$2:$L$1000,"13-18") -> 0 | T15: =COUNTIF(入力シート!$L$2:$L$1000,"13-19") -> 0 | U15: =COUNTIF(入力シート!$L$2:$L$1000,"13-20") -> 0
A16: 14 | B16: =COUNTIF(入力シート!$L$2:$L$1000,"14-1") -> 0 | C16: =COUNTIF(入力シート!$L$2:$L$1000,"14-2") -> 0 | D16: =COUNTIF(入力シート!$L$2:$L$1000,"14-3") -> 0 | E16: =COUNTIF(入力シート!$L$2:$L$1000,"14-4") -> 0 | F16: =COUNTIF(入力シート!$L$2:$L$1000,"14-5") -> 0 | G16: =COUNTIF(入力シート!$L$2:$L$1000,"14-6") -> 0 | H16: =COUNTIF(入力シート!$L$2:$L$1000,"14-7") -> 0 | I16: =COUNTIF(入力シート!$L$2:$L$1000,"14-8") -> 0 | J16: =COUNTIF(入力シート!$L$2:$L$1000,"14-9") -> 0 | K16: =COUNTIF(入力シート!$L$2:$L$1000,"14-10") -> 0 | L16: =COUNTIF(入力シート!$L$2:$L$1000,"14-11") -> 0 | M16: =COUNTIF(入力シート!$L$2:$L$1000,"14-12") -> 0 | N16: =COUNTIF(入力シート!$L$2:$L$1000,"14-13") -> 0 | O16: =COUNTIF(入力シート!$L$2:$L$1000,"14-14") -> 0 | P16: =COUNTIF(入力シート!$L$2:$L$1000,"14-15") -> 0 | Q16: =COUNTIF(入力シート!$L$2:$L$1000,"14-16") -> 0 | R16: =COUNTIF(入力シート!$L$2:$L$1000,"14-17") -> 0 | S16: =COUNTIF(入力シート!$L$2:$L$1000,"14-18") -> 0 | T16: =COUNTIF(入力シート!$L$2:$L$1000,"14-19") -> 0 | U16: =COUNTIF(入力シート!$L$2:$L$1000,"14-20") -> 0
A17: 15 | B17: =COUNTIF(入力シート!$L$2:$L$1000,"15-1") -> 0 | C17: =COUNTIF(入力シート!$L$2:$L$1000,"15-2") -> 0 | D17: =COUNTIF(入力シート!$L$2:$L$1000,"15-3") -> 0 | E17: =COUNTIF(入力シート!$L$2:$L$1000,"15-4") -> 0 | F17: =COUNTIF(入力シート!$L$2:$L$1000,"15-5") -> 0 | G17: =COUNTIF(入力シート!$L$2:$L$1000,"15-6") -> 0 | H17: =COUNTIF(入力シート!$L$2:$L$1000,"15-7") -> 0 | I17: =COUNTIF(入力シート!$L$2:$L$1000,"15-8") -> 0 | J17: =COUNTIF(入力シート!$L$2:$L$1000,"15-9") -> 0 | K17: =COUNTIF(入力シート!$L$2:$L$1000,"15-10") -> 0 | L17: =COUNTIF(入力シート!$L$2:$L$1000,"15-11") -> 0 | M17: =COUNTIF(入力シート!$L$2:$L$1000,"15-12") -> 0 | N17: =COUNTIF(入力シート!$L$2:$L$1000,"15-13") -> 0 | O17: =COUNTIF(入力シート!$L$2:$L$1000,"15-14") -> 0 | P17: =COUNTIF(入力シート!$L$2:$L$1000,"15-15") -> 0 | Q17: =COUNTIF(入力シート!$L$2:$L$1000,"15-16") -> 0 | R17: =COUNTIF(入力シート!$L$2:$L$1000,"15-17") -> 0 | S17: =COUNTIF(入力シート!$L$2:$L$1000,"15-18") -> 0 | T17: =COUNTIF(入力シート!$L$2:$L$1000,"15-19") -> 0 | U17: =COUNTIF(入力シート!$L$2:$L$1000,"15-20") -> 0
A18: 16 | B18: =COUNTIF(入力シート!$L$2:$L$1000,"16-1") -> 0 | C18: =COUNTIF(入力シート!$L$2:$L$1000,"16-2") -> 0 | D18: =COUNTIF(入力シート!$L$2:$L$1000,"16-3") -> 0 | E18: =COUNTIF(入力シート!$L$2:$L$1000,"16-4") -> 0 | F18: =COUNTIF(入力シート!$L$2:$L$1000,"16-5") -> 0 | G18: =COUNTIF(入力シート!$L$2:$L$1000,"16-6") -> 0 | H18: =COUNTIF(入力シート!$L$2:$L$1000,"16-7") -> 0 | I18: =COUNTIF(入力シート!$L$2:$L$1000,"16-8") -> 0 | J18: =COUNTIF(入力シート!$L$2:$L$1000,"16-9") -> 0 | K18: =COUNTIF(入力シート!$L$2:$L$1000,"16-10") -> 0 | L18: =COUNTIF(入力シート!$L$2:$L$1000,"16-11") -> 0 | M18: =COUNTIF(入力シート!$L$2:$L$1000,"16-12") -> 0 | N18: =COUNTIF(入力シート!$L$2:$L$1000,"16-13") -> 0 | O18: =COUNTIF(入力シート!$L$2:$L$1000,"16-14") -> 0 | P18: =COUNTIF(入力シート!$L$2:$L$1000,"16-15") -> 0 | Q18: =COUNTIF(入力シート!$L$2:$L$1000,"16-16") -> 0 | R18: =COUNTIF(入力シート!$L$2:$L$1000,"16-17") -> 0 | S18: =COUNTIF(入力シート!$L$2:$L$1000,"16-18") -> 0 | T18: =COUNTIF(入力シート!$L$2:$L$1000,"16-19") -> 0 | U18: =COUNTIF(入力シート!$L$2:$L$1000,"16-20") -> 0
A19: 17 | B19: =COUNTIF(入力シート!$L$2:$L$1000,"17-1") -> 0 | C19: =COUNTIF(入力シート!$L$2:$L$1000,"17-2") -> 0 | D19: =COUNTIF(入力シート!$L$2:$L$1000,"17-3") -> 0 | E19: =COUNTIF(入力シート!$L$2:$L$1000,"17-4") -> 0 | F19: =COUNTIF(入力シート!$L$2:$L$1000,"17-5") -> 0 | G19: =COUNTIF(入力シート!$L$2:$L$1000,"17-6") -> 0 | H19: =COUNTIF(入力シート!$L$2:$L$1000,"17-7") -> 0 | I19: =COUNTIF(入力シート!$L$2:$L$1000,"17-8") -> 0 | J19: =COUNTIF(入力シート!$L$2:$L$1000,"17-9") -> 0 | K19: =COUNTIF(入力シート!$L$2:$L$1000,"17-10") -> 0 | L19: =COUNTIF(入力シート!$L$2:$L$1000,"17-11") -> 0 | M19: =COUNTIF(入力シート!$L$2:$L$1000,"17-12") -> 0 | N19: =COUNTIF(入力シート!$L$2:$L$1000,"17-13") -> 0 | O19: =COUNTIF(入力シート!$L$2:$L$1000,"17-14") -> 0 | P19: =COUNTIF(入力シート!$L$2:$L$1000,"17-15") -> 0 | Q19: =COUNTIF(入力シート!$L$2:$L$1000,"17-16") -> 0 | R19: =COUNTIF(入力シート!$L$2:$L$1000,"17-17") -> 0 | S19: =COUNTIF(入力シート!$L$2:$L$1000,"17-18") -> 0 | T19: =COUNTIF(入力シート!$L$2:$L$1000,"17-19") -> 0 | U19: =COUNTIF(入力シート!$L$2:$L$1000,"17-20") -> 0
A20: 18 | B20: =COUNTIF(入力シート!$L$2:$L$1000,"18-1") -> 0 | C20: =COUNTIF(入力シート!$L$2:$L$1000,"18-2") -> 0 | D20: =COUNTIF(入力シート!$L$2:$L$1000,"18-3") -> 0 | E20: =COUNTIF(入力シート!$L$2:$L$1000,"18-4") -> 0 | F20: =COUNTIF(入力シート!$L$2:$L$1000,"18-5") -> 0 | G20: =COUNTIF(入力シート!$L$2:$L$1000,"18-6") -> 0 | H20: =COUNTIF(入力シート!$L$2:$L$1000,"18-7") -> 0 | I20: =COUNTIF(入力シート!$L$2:$L$1000,"18-8") -> 0 | J20: =COUNTIF(入力シート!$L$2:$L$1000,"18-9") -> 0 | K20: =COUNTIF(入力シート!$L$2:$L$1000,"18-10") -> 0 | L20: =COUNTIF(入力シート!$L$2:$L$1000,"18-11") -> 0 | M20: =COUNTIF(入力シート!$L$2:$L$1000,"18-12") -> 0 | N20: =COUNTIF(入力シート!$L$2:$L$1000,"18-13") -> 0 | O20: =COUNTIF(入力シート!$L$2:$L$1000,"18-14") -> 0 | P20: =COUNTIF(入力シート!$L$2:$L$1000,"18-15") -> 0 | Q20: =COUNTIF(入力シート!$L$2:$L$1000,"18-16") -> 0 | R20: =COUNTIF(入力シート!$L$2:$L$1000,"18-17") -> 0 | S20: =COUNTIF(入力シート!$L$2:$L$1000,"18-18") -> 0 | T20: =COUNTIF(入力シート!$L$2:$L$1000,"18-19") -> 0 | U20: =COUNTIF(入力シート!$L$2:$L$1000,"18-20") -> 0
A21: 19 | B21: =COUNTIF(入力シート!$L$2:$L$1000,"19-1") -> 0 | C21: =COUNTIF(入力シート!$L$2:$L$1000,"19-2") -> 0 | D21: =COUNTIF(入力シート!$L$2:$L$1000,"19-3") -> 0 | E21: =COUNTIF(入力シート!$L$2:$L$1000,"19-4") -> 0 | F21: =COUNTIF(入力シート!$L$2:$L$1000,"19-5") -> 0 | G21: =COUNTIF(入力シート!$L$2:$L$1000,"19-6") -> 0 | H21: =COUNTIF(入力シート!$L$2:$L$1000,"19-7") -> 0 | I21: =COUNTIF(入力シート!$L$2:$L$1000,"19-8") -> 0 | J21: =COUNTIF(入力シート!$L$2:$L$1000,"19-9") -> 0 | K21: =COUNTIF(入力シート!$L$2:$L$1000,"19-10") -> 0 | L21: =COUNTIF(入力シート!$L$2:$L$1000,"19-11") -> 0 | M21: =COUNTIF(入力シート!$L$2:$L$1000,"19-12") -> 0 | N21: =COUNTIF(入力シート!$L$2:$L$1000,"19-13") -> 0 | O21: =COUNTIF(入力シート!$L$2:$L$1000,"19-14") -> 0 | P21: =COUNTIF(入力シート!$L$2:$L$1000,"19-15") -> 0 | Q21: =COUNTIF(入力シート!$L$2:$L$1000,"19-16") -> 0 | R21: =COUNTIF(入力シート!$L$2:$L$1000,"19-17") -> 0 | S21: =COUNTIF(入力シート!$L$2:$L$1000,"19-18") -> 0 | T21: =COUNTIF(入力シート!$L$2:$L$1000,"19-19") -> 0 | U21: =COUNTIF(入力シート!$L$2:$L$1000,"19-20") -> 0
A22: 20 | B22: =COUNTIF(入力シート!$L$2:$L$1000,"20-1") -> 0 | C22: =COUNTIF(入力シート!$L$2:$L$1000,"20-2") -> 0 | D22: =COUNTIF(入力シート!$L$2:$L$1000,"20-3") -> 0 | E22: =COUNTIF(入力シート!$L$2:$L$1000,"20-4") -> 0 | F22: =COUNTIF(入力シート!$L$2:$L$1000,"20-5") -> 0 | G22: =COUNTIF(入力シート!$L$2:$L$1000,"20-6") -> 0 | H22: =COUNTIF(入力シート!$L$2:$L$1000,"20-7") -> 0 | I22: =COUNTIF(入力シート!$L$2:$L$1000,"20-8") -> 0 | J22: =COUNTIF(入力シート!$L$2:$L$1000,"20-9") -> 0 | K22: =COUNTIF(入力シート!$L$2:$L$1000,"20-10") -> 0 | L22: =COUNTIF(入力シート!$L$2:$L$1000,"20-11") -> 0 | M22: =COUNTIF(入力シート!$L$2:$L$1000,"20-12") -> 0 | N22: =COUNTIF(入力シート!$L$2:$L$1000,"20-13") -> 0 | O22: =COUNTIF(入力シート!$L$2:$L$1000,"20-14") -> 0 | P22: =COUNTIF(入力シート!$L$2:$L$1000,"20-15") -> 0 | Q22: =COUNTIF(入力シート!$L$2:$L$1000,"20-16") -> 0 | R22: =COUNTIF(入力シート!$L$2:$L$1000,"20-17") -> 0 | S22: =COUNTIF(入力シート!$L$2:$L$1000,"20-18") -> 0 | T22: =COUNTIF(入力シート!$L$2:$L$1000,"20-19") -> 0 | U22: =COUNTIF(入力シート!$L$2:$L$1000,"20-20") -> 0

Sheet 分析シート４（時系列）
A1: カテゴリー連鎖頻度

Sheet 分析シート３（連鎖頻度）
I3: 頻度 | J3: ＩＣ | K3: ＷＨ | O3: 頻度 | P3: ランク | T3: 頻度 | U3: ランク | Y3: 頻度 | Z3: ランク | AD3: 頻度 | AE3: ランク | AI3: 頻度 | AJ3: ランク | AN3: 頻度 | AO3: ランク | AS3: 頻度 | AT3: ランク | AX3: 頻度 | AY3: ランク | BC3: 頻度 | BD3: ランク | BH3: 頻度 | BI3: ランク | BM3: 頻度 | BN3: ランク | BR3: 頻度 | BS3: ランク | BW3: 頻度 | BX3: ランク | CB3: 頻度 | CC3: ランク | CG3: 頻度 | CH3: ランク | CL3: 頻度 | CM3: ランク | CQ3: 頻度 | CR3: ランク | CV3: 頻度 | CW3: ランク | DA3: 頻度 | DB3: ランク | DF3: 頻度 | DG3: ランク
A4: 1 | B4: 1 | C4: =COUNTIF(入力シート!$L$2:$L$1000,"1-1") -> 0 | D4: =RANK(C4,$C$4:$C$23) -> 1 | E4: =RANK(C4,$C$4:$C$403) -> 1 | G4: 18 | H4: 18 | I4: =COUNTIF(入力シート!$L$2:$L$1000,"18-18") -> 0 | J4: =RANK(I4,$C$344:$C$363) -> 1 | K4: =RANK(I4,$C$4:$C$403) -> 1 | M4: 1 | N4: 16 | O4: =COUNTIF(入力シート!$L$2:$L$1000,"1-16") -> 0 | P4: =RANK(O4,$C$4:$C$23) -> 1 | R4: 2 | S4: 15 | T4: =COUNTIF(入力シート!$L$2:$L$1000,"2-15") -> 0 | U4: =RANK(T4,$C$24:$C$43) -> 1 | W4: 3 | X4: 15 | Y4: =COUNTIF(入力シート!$L$2:$L$1000,"3-15") -> 0 | Z4: =RANK(Y4,$C$44:$C$63) -> 1 | AB4: 4 | AC4: 10 | AD4: =COUNTIF(入力シート!$L$2:$L$1000,"4-10") -> 0 | AE4: =RANK(AD4,$C$64:$C$83) -> 1 | AG4: 5 | AH4: 5 | AI4: =COUNTIF(入力シート!$L$2:$L$1000,"5-5") -> 0 | AJ4: =RANK(AI4,$C$84:$C$103) -> 1 | AL4: 6 | AM4: 15 | AN4: =COUNTIF(入力シート!$L$2:$L$1000,"6-15") -> 0 | AO4: =RANK(AN4,$C$104:$C$123) -> 1 | AQ4: 7 | AR4: 1 | AS4: =COUNTIF(入力シート!$L$2:$L$1000,"7-1") -> 0 | AT4: =RANK(AS4,$C$124:$C$143) -> 1 | AV4: 8 | AW4: 10 | AX4: =COUNTIF(入力シート!$L$2:$L$1000,"8-10") -> 0 | AY4: =RANK(AX4,$C$144:$C$163) -> 1 | BA4: 9 | BB4: 1 | BC4: =COUNTIF(入力シート!$L$2:$L$1000,"9-1") -> 0 | BD4: =RANK(BC4,$C$164:$C$183) -> 1 | BF4: 10 | BG4: 10 | BH4: =COUNTIF(入力シート!$L$2:$L$1000,"10-10") -> 0 | BI4: =RANK(BH4,$C$184:$C$203) -> 1 | BK4: 11 | BL4: 12 | BM4: =COUNTIF(入力シート!$L$2:$L$1000,"11-12") -> 0 | BN4: =RANK(BM4,$C$204:$C$223) -> 1 | BP4: 12 | BQ4: 18 | BR4: =COUNTIF(入力シート!$L$2:$L$1000,"12-18") -> 0 | BS4: =RANK(BR4,$C$224:$C$243) -> 1 | BU4: 13 | BV4: 10 | BW4: =COUNTIF(入力シート!$L$2:$L$1000,"13-10") -> 0 | BX4: =RANK(BW4,$C$244:$C$263) -> 1 | BZ4: 14 | CA4: 12 | CB4: =COUNTIF(入力シート!$L$2:$L$1000,"14-12") -> 0 | CC4: =RANK(CB4,$C$264:$C$283) -> 1 | CE4: 15 | CF4: 15 | CG4: =COUNTIF(入力シート!$L$2:$L$1000,"15-15") -> 0 | CH4: =RANK(CG4,$C$284:$C$303) -> 1 | CJ4: 16 | CK4: 16 | CL4: =COUNTIF(入力シート!$L$2:$L$1000,"16-16") -> 0 | CM4: =RANK(CL4,$C$304:$C$323) -> 1 | CO4: 17 | CP4: 10 | CQ4: =COUNTIF(入力シート!$L$2:$L$1000,"17-10") -> 0 | CR4: =RANK(CQ4,$C$324:$C$343) -> 1 | CT4: 18 | CU4: 18 | CV4: =COUNTIF(入力シート!$L$2:$L$1000,"18-18") -> 0 | CW4: =RANK(CV4,$C$344:$C$363) -> 1 | CY4: 19 | CZ4: 19 | DA4: =COUNTIF(入力シート!$L$2:$L$1000,"19-19") -> 0 | DB4: =RANK(DA4,$C$364:$C$383) -> 1 | DD4: 20 | DE4: 1 | DF4: =COUNTIF(入力シート!$L$2:$L$1000,"20-1") -> 0 | DG4: =RANK(DF4,$C$384:$C$403) -> 1
A5: 1 | B5: 2 | C5: =COUNTIF(入力シート!$L$2:$L$1000,"1-2") -> 0 | D5: =RANK(C5,$C$4:$C$23) -> 1 | E5: =RANK(C5,$C$4:$C$403) -> 1 | G5: 19 | H5: 19 | I5: =COUNTIF(入力シート!$L$2:$L$1000,"19-19") -> 0 | J5: =RANK(I5,$C$364:$C$383) -> 1 | K5: 1 | M5: 1 | N5: 18 | O5: =COUNTIF(入力シート!$L$2:$L$1000,"1-18") -> 0 | P5: 1 | R5: 2 | S5: 1 | T5: =COUNTIF(入力シート!$L$2:$L$1000,"2-1") -> 0 | U5: 1 | W5: 3 | X5: 18 | Y5: =COUNTIF(入力シート!$L$2:$L$1000,"3-18") -> 0 | Z5: 1 | AB5: 4 | AC5: 1 | AD5: =COUNTIF(入力シート!$L$2:$L$1000,"4-1") -> 0 | AE5: 1 | AG5: 5 | AH5: 4 | AI5: =COUNTIF(入力シート!$L$2:$L$1000,"5-4") -> 0 | AJ5: 1 | AL5: 6 | AM5: 1 | AN5: =COUNTIF(入力シート!$L$2:$L$1000,"6-1") -> 0 | AO5: 1 | AQ5: 7 | AR5: 2 | AS5: =COUNTIF(入力シート!$L$2:$L$1000,"7-2") -> 0 | AT5: 1 | AV5: 8 | AW5: 8 | AX5: =COUNTIF(入力シート!$L$2:$L$1000,"8-8") -> 0 | AY5: 1 | BA5: 9 | BB5: 2 | BC5: =COUNTIF(入力シート!$L$2:$L$1000,"9-2") -> 0 | BD5: 1 | BF5: 10 | BG5: 19 | BH5: =COUNTIF(入力シート!$L$2:$L$1000,"10-19") -> 0 | BI5: 1 | BK5: 11 | BL5: 14 | BM5: =COUNTIF(入力シート!$L$2:$L$1000,"11-14") -> 0 | BN5: 1 | BP5: 12 | BQ5: 14 | BR5: =COUNTIF(入力シート!$L$2:$L$1000,"12-14") -> 0 | BS5: 1 | BU5: 13 | BV5: 14 | BW5: =COUNTIF(入力シート!$L$2:$L$1000,"13-14") -> 0 | BX5: 1 | BZ5: 14 | CA5: 14 | CB5: =COUNTIF(入力シート!$L$2:$L$1000,"14-14") -> 0 | CC5: 1 | CE5: 15 | CF5: 18 | CG5: =COUNTIF(入力シート!$L$2:$L$1000,"15-18") -> 0 | CH5: 1 | CJ5: 16 | CK5: 18 | CL5: =COUNTIF(入力シート!$L$2:$L$1000,"16-18") -> 0 | CM5: 1 | CO5: 17 | CP5: 18 | CQ5: =COUNTIF(入力シート!$L$2:$L$1000,"17-18") -> 0 | CR5: 1 | CT5: 18 | CU5: 16 | CV5: =COUNTIF(入力シート!$L$2:$L$1000,"18-16") -> 0 | CW5: 1 | CY5: 19 | CZ5: 10 | DA5: =COUNTIF(入力シート!$L$2:$L$1000,"19-10") -> 0 | DB5: 1 | DD5: 20 | DE5: 2 | DF5: =COUNTIF(入力シート!$L$2:$L$1000,"20-2") -> 0 | DG5: 1
A6: 1 | B6: 3 | C6: =COUNTIF(入力シート!$L$2:$L$1000,"1-3") -> 0 | D6: 1 | E6: 1 | G6: 10 | H6: 10 | I6: =COUNTIF(入力シート!$L$2:$L$1000,"10-10") -> 0 | J6: =RANK(I6,$C$184:$C$203) -> 1 | K6: 1 | M6: 1 | N6: 1 | O6: =COUNTIF(入力シート!$L$2:$L$1000,"1-1") -> 0 | P6: 1 | R6: 2 | S6: 2 | T6: =COUNTIF(入力シート!$L$2:$L$1000,"2-2") -> 0 | U6: 1 | W6: 3 | X6: 1 | Y6: =COUNTIF(入力シート!$L$2:$L$1000,"3-1") -> 0 | Z6: 1 | AB6: 4 | AC6: 2 | AD6: =COUNTIF(入力シート!$L$2:$L$1000,"4-2") -> 0 | AE6: 1 | AG6: 5 | AH6: 6 | AI6: =COUNTIF(入力シート!$L$2:$L$1000,"5-6") -> 0 | AJ6: 1 | AL6: 6 | AM6: 2 | AN6: =COUNTIF(入力シート!$L$2:$L$1000,"6-2") -> 0 | AO6: 1 | AQ6: 7 | AR6: 3 | AS6: =COUNTIF(入力シート!$L$2:$L$1000,"7-3") -> 0 | AT6: 1 | AV6: 8 | AW6: 18 | AX6: =COUNTIF(入力シート!$L$2:$L$1000,"8-18") -> 0 | AY6: 1 | BA6: 9 | BB6: 3 | BC6: =COUNTIF(入力シート!$L$2:$L$1000,"9-3") -> 0 | BD6: 1 | BF6: 10 | BG6: 16 | BH6: =COUNTIF(入力シート!$L$2:$L$1000,"10-16") -> 0 | BI6: 1 | BK6: 11 | BL6: 16 | BM6: =COUNTIF(入力シート!$L$2:$L$1000,"11-16") -> 0 | BN6: 1 | BP6: 12 | BQ6: 10 | BR6: =COUNTIF(入力シート!$L$2:$L$1000,"12-10") -> 0 | BS6: 1 | BU6: 13 | BV6: 13 | BW6: =COUNTIF(入力シート!$L$2:$L$1000,"13-13") -> 0 | BX6: 1 | BZ6: 14 | CA6: 18 | CB6: =COUNTIF(入力シート!$L$2:$L$1000,"14-18") -> 0 | CC6: 1 | CE6: 15 | CF6: 10 | CG6: =COUNTIF(入力シート!$L$2:$L$1000,"15-10") -> 0 | CH6: 1 | CJ6: 16 | CK6: 10 | CL6: =COUNTIF(入力シート!$L$2:$L$1000,"16-10") -> 0 | CM6: 1 | CO6: 17 | CP6: 12 | CQ6: =COUNTIF(入力シート!$L$2:$L$1000,"17-12") -> 0 | CR6: 1 | CT6: 18 | CU6: 10 | CV6: =COUNTIF(入力シート!$L$2:$L$1000,"18-10") -> 0 | CW6: 1 | CY6: 19 | CZ6: 16 | DA6: =COUNTIF(入力シート!$L$2:$L$1000,"19-16") -> 0 | DB6: 1 | DD6: 20 | DE6: 3 | DF6: =COUNTIF(入力シート!$L$2:$L$1000,"20-3") -> 0 | DG6: 1
A7: 1 | B7: 4 | C7: =COUNTIF(入力シート!$L$2:$L$1000,"1-4") -> 0 | D7: 1 | E7: 1 | G7: 16 | H7: 16 | I7: =COUNTIF(入力シート!$L$2:$L$1000,"16-16") -> 0 | J7: =RANK(I7,$C$304:$C$323) -> 1 | K7: 1 | M7: 1 | N7: 2 | O7: =COUNTIF(入力シート!$L$2:$L$1000,"1-2") -> 0 | P7: 1 | R7: 2 | S7: 3 | T7: =COUNTIF(入力シート!$L$2:$L$1000,"2-3") -> 0 | U7: 1 | W7: 3 | X7: 2 | Y7: =COUNTIF(入力シート!$L$2:$L$1000,"3-2") -> 0 | Z7: 1 | AB7: 4 | AC7: 3 | AD7: =COUNTIF(入力シート!$L$2:$L$1000,"4-3") -> 0 | AE7: 1 | AG7: 5 | AH7: 12 | AI7: =COUNTIF(入力シート!$L$2:$L$1000,"5-12") -> 0 | AJ7: 1 | AL7: 6 | AM7: 3 | AN7: =COUNTIF(入力シート!$L$2:$L$1000,"6-3") -> 0 | AO7: 1 | AQ7: 7 | AR7: 4 | AS7: =COUNTIF(入力シート!$L$2:$L$1000,"7-4") -> 0 | AT7: 1 | AV7: 8 | AW7: 1 | AX7: =COUNTIF(入力シート!$L$2:$L$1000,"8-1") -> 0 | AY7: 1 | BA7: 9 | BB7: 4 | BC7: =COUNTIF(入力シート!$L$2:$L$1000,"9-4") -> 0 | BD7: 1 | BF7: 10 | BG7: 18 | BH7: =COUNTIF(入力シート!$L$2:$L$1000,"10-18") -> 0 | BI7: 1 | BK7: 11 | BL7: 19 | BM7: =COUNTIF(入力シート!$L$2:$L$1000,"11-19") -> 0 | BN7: 1 | BP7: 12 | BQ7: 16 | BR7: =COUNTIF(入力シート!$L$2:$L$1000,"12-16") -> 0 | BS7: 1 | BU7: 13 | BV7: 16 | BW7: =COUNTIF(入力シート!$L$2:$L$1000,"13-16") -> 0 | BX7: 1 | BZ7: 14 | CA7: 15 | CB7: =COUNTIF(入力シート!$L$2:$L$1000,"14-15") -> 0 | CC7: 1 | CE7: 15 | CF7: 14 | CG7: =COUNTIF(入力シート!$L$2:$L$1000,"15-14") -> 0 | CH7: 1 | CJ7: 16 | CK7: 12 | CL7: =COUNTIF(入力シート!$L$2:$L$1000,"16-12") -> 0 | CM7: 1 | CO7: 17 | CP7: 13 | CQ7: =COUNTIF(入力シート!$L$2:$L$1000,"17-13") -> 0 | CR7: 1 | CT7: 18 | CU7: 12 | CV7: =COUNTIF(入力シート!$L$2:$L$1000,"18-12") -> 0 | CW7: 1 | CY7: 19 | CZ7: 13 | DA7: =COUNTIF(入力シート!$L$2:$L$1000,"19-13") -> 0 | DB7: 1 | DD7: 20 | DE7: 4 | DF7: =COUNTIF(入力シート!$L$2:$L$1000,"20-4") -> 0 | DG7: 1
A8: 1 | B8: 5 | C8: =COUNTIF(入力シート!$L$2:$L$1000,"1-5") -> 0 | D8: 1 | E8: 1 | G8: 10 | H8: 19 | I8: =COUNTIF(入力シート!$L$2:$L$1000,"10-19") -> 0 | J8: =RANK(I8,$C$184:$C$203) -> 1 | K8: 1 | M8: 1 | N8: 3 | O8: =COUNTIF(入力シート!$L$2:$L$1000,"1-3") -> 0 | P8: 1 | R8: 2 | S8: 4 | T8: =COUNTIF(入力シート!$L$2:$L$1000,"2-4") -> 0 | U8: 1 | W8: 3 | X8: 3 | Y8: =COUNTIF(入力シート!$L$2:$L$1000,"3-3") -> 0 | Z8: 1 | AB8: 4 | AC8: 4 | AD8: =COUNTIF(入力シート!$L$2:$L$1000,"4-4") -> 0 | AE8: 1 | AG8: 5 | AH8: 16 | AI8: =COUNTIF(入力シート!$L$2:$L$1000,"5-16") -> 0 | AJ8: 1 | AL8: 6 | AM8: 4 | AN8: =COUNTIF(入力シート!$L$2:$L$1000,"6-4") -> 0 | AO8: 1 | AQ8: 7 | AR8: 5 | AS8: =COUNTIF(入力シート!$L$2:$L$1000,"7-5") -> 0 | AT8: 1 | AV8: 8 | AW8: 2 | AX8: =COUNTIF(入力シート!$L$2:$L$1000,"8-2") -> 0 | AY8: 1 | BA8: 9 | BB8: 5 | BC8: =COUNTIF(入力シート!$L$2:$L$1000,"9-5") -> 0 | BD8: 1 | BF8: 10 | BG8: 15 | BH8: =COUNTIF(入力シート!$L$2:$L$1000,"10-15") -> 0 | BI8: 1 | BK8: 11 | BL8: 1 | BM8: =COUNTIF(入力シート!$L$2:$L$1000,"11-1") -> 0 | BN8: 1 | BP8: 12 | BQ8: 12 | BR8: =COUNTIF(入力シート!$L$2:$L$1000,"12-12") -> 0 | BS8: 1 | BU8: 13 | BV8: 15 | BW8: =COUNTIF(入力シート!$L$2:$L$1000,"13-15") -> 0 | BX8: 1 | BZ8: 14 | CA8: 10 | CB8: =COUNTIF(入力シート!$L$2:$L$1000,"14-10") -> 0 | CC8: 1 | CE8: 15 | CF8: 16 | CG8: =COUNTIF(入力シート!$L$2:$L$1000,"15-16") -> 0 | CH8: 1 | CJ8: 16 | CK8: 14 | CL8: =COUNTIF(入力シート!$L$2:$L$1000,"16-14") -> 0 | CM8: 1 | CO8: 17 | CP8: 14 | CQ8: =COUNTIF(入力シート!$L$2:$L$1000,"17-14") -> 0 | CR8: 1 | CT8: 18 | CU8: 13 | CV8: =COUNTIF(入力シート!$L$2:$L$1000,"18-13") -> 0 | CW8: 1 | CY8: 19 | CZ8: 12 | DA8: =COUNTIF(入力シート!$L$2:$L$1000,"19-12") -> 0 | DB8: 1 | DD8: 20 | DE8: 5 | DF8: =COUNTIF(入力シート!$L$2:$L$1000,"20-5") -> 0 | DG8: 1
A9: 1 | B9: 6 | C9: =COUNTIF(入力シート!$L$2:$L$1000,"1-6") -> 0 | D9: 1 | E9: 1 | G9: 19 | H9: 10 | I9: =COUNTIF(入力シート!$L$2:$L$1000,"19-10") -> 0 | J9: =RANK(I9,$C$364:$C$383) -> 1 | K9: 1 | M9: 1 | N9: 4 | O9: =COUNTIF(入力シート!$L$2:$L$1000,"1-4") -> 0 | P9: 1 | R9: 2 | S9: 5 | T9: =COUNTIF(入力シート!$L$2:$L$1000,"2-5") -> 0 | U9: 1 | W9: 3 | X9: 4 | Y9: =COUNTIF(入力シート!$L$2:$L$1000,"3-4") -> 0 | Z9: 1 | AB9: 4 | AC9: 5 | AD9: =COUNTIF(入力シート!$L$2:$L$1000,"4-5") -> 0 | AE9: 1 | AG9: 5 | AH9: 18 | AI9: =COUNTIF(入力シート!$L$2:$L$1000,"5-18") -> 0 | AJ9: 1 | AL9: 6 | AM9: 5 | AN9: =COUNTIF(入力シート!$L$2:$L$1000,"6-5") -> 0 | AO9: 1 | AQ9: 7 | AR9: 6 | AS9: =COUNTIF(入力シート!$L$2:$L$1000,"7-6") -> 0 | AT9: 1 | AV9: 8 | AW9: 3 | AX9: =COUNTIF(入力シート!$L$2:$L$1000,"8-3") -> 0 | AY9: 1 | BA9: 9 | BB9: 6 | BC9: =COUNTIF(入力シート!$L$2:$L$1000,"9-6") -> 0 | BD9: 1 | BF9: 10 | BG9: 13 | BH9: =COUNTIF(入力シート!$L$2:$L$1000,"10-13") -> 0 | BI9: 1 | BK9: 11 | BL9: 2 | BM9: =COUNTIF(入力シート!$L$2:$L$1000,"11-2") -> 0 | BN9: 1 | BP9: 12 | BQ9: 17 | BR9: =COUNTIF(入力シート!$L$2:$L$1000,"12-17") -> 0 | BS9: 1 | BU9: 13 | BV9: 19 | BW9: =COUNTIF(入力シート!$L$2:$L$1000,"13-19") -> 0 | BX9: 1 | BZ9: 14 | CA9: 13 | CB9: =COUNTIF(入力シート!$L$2:$L$1000,"14-13") -> 0 | CC9: 1 | CE9: 15 | CF9: 12 | CG9: =COUNTIF(入力シート!$L$2:$L$1000,"15-12") -> 0 | CH9: 1 | CJ9: 16 | CK9: 19 | CL9: =COUNTIF(入力シート!$L$2:$L$1000,"16-19") -> 0 | CM9: 1 | CO9: 17 | CP9: 16 | CQ9: =COUNTIF(入力シート!$L$2:$L$1000,"17-16") -> 0 | CR9: 1 | CT9: 18 | CU9: 14 | CV9: =COUNTIF(入力シート!$L$2:$L$1000,"18-14") -> 0 | CW9: 1 | CY9: 19 | CZ9: 11 | DA9: =COUNTIF(入力シート!$L$2:$L$1000,"19-11") -> 0 | DB9: 1 | DD9: 20 | DE9: 6 | DF9: =COUNTIF(入力シート!$L$2:$L$1000,"20-6") -> 0 | DG9: 1
A10: 1 | B10: 7 | C10: =COUNTIF(入力シート!$L$2:$L$1000,"1-7") -> 0 | D10: 1 | E10: 1 | G10: 16 | H10: 18 | I10: =COUNTIF(入力シート!$L$2:$L$1000,"16-18") -> 0 | J10: =RANK(I10,$C$304:$C$323) -> 1 | K10: 1 | M10: 1 | N10: 5 | O10: =COUNTIF(入力シート!$L$2:$L$1000,"1-5") -> 0 | P10: 1 | R10: 2 | S10: 6 | T10: =COUNTIF(入力シート!$L$2:$L$1000,"2-6") -> 0 | U10: 1 | W10: 3 | X10: 5 | Y10: =COUNTIF(入力シート!$L$2:$L$1000,"3-5") -> 0 | Z10: 1 | AB10: 4 | AC10: 6 | AD10: =COUNTIF(入力シート!$L$2:$L$1000,"4-6") -> 0 | AE10: 1 | AG10: 5 | AH10: 1 | AI10: =COUNTIF(入力シート!$L$2:$L$1000,"5-1") -> 0 | AJ10: 1 | AL10: 6 | AM10: 6 | AN10: =COUNTIF(入力シート!$L$2:$L$1000,"6-6") -> 0 | AO10: 1 | AQ10: 7 | AR10: 7 | AS10: =COUNTIF(入力シート!$L$2:$L$1000,"7-7") -> 0 | AT10: 1 | AV10: 8 | AW10: 4 | AX10: =COUNTIF(入力シート!$L$2:$L$1000,"8-4") -> 0 | AY10: 1 | BA10: 9 | BB10: 7 | BC10: =COUNTIF(入力シート!$L$2:$L$1000,"9-7") -> 0 | BD10: 1 | BF10: 10 | BG10: 14 | BH10: =COUNTIF(入力シート!$L$2:$L$1000,"10-14") -> 0 | BI10: 1 | BK10: 11 | BL10: 3 | BM10: =COUNTIF(入力シート!$L$2:$L$1000,"11-3") -> 0 | BN10: 1 | BP10: 12 | BQ10: 15 | BR10: =COUNTIF(入力シート!$L$2:$L$1000,"12-15") -> 0 | BS10: 1 | BU10: 13 | BV10: 18 | BW10: =COUNTIF(入力シート!$L$2:$L$1000,"13-18") -> 0 | BX10: 1 | BZ10: 14 | CA10: 16 | CB10: =COUNTIF(入力シート!$L$2:$L$1000,"14-16") -> 0 | CC10: 1 | CE10: 15 | CF10: 2 | CG10: =COUNTIF(入力シート!$L$2:$L$1000,"15-2") -> 0 | CH10: 1 | CJ10: 16 | CK10: 15 | CL10: =COUNTIF(入力シート!$L$2:$L$1000,"16-15") -> 0 | CM10: 1 | CO10: 17 | CP10: 17 | CQ10: =COUNTIF(入力シート!$L$2:$L$1000,"17-17") -> 0 | CR10: 1 | CT10: 18 | CU10: 15 | CV10: =COUNTIF(入力シート!$L$2:$L$1000,"18-15") -> 0 | CW10: 1 | CY10: 19 | CZ10: 14 | DA10: =COUNTIF(入力シート!$L$2:$L$1000,"19-14") -> 0 | DB10: 1 | DD10: 20 | DE10: 7 | DF10: =COUNTIF(入力シート!$L$2:$L$1000,"20-7") -> 0 | DG10: 1
A11: 1 | B11: 8 | C11: =COUNTIF(入力シート!$L$2:$L$1000,"1-8") -> 0 | D11: 1 | E11: 1 | G11: 18 | H11: 16 | I11: =COUNTIF(入力シート!$L$2:$L$1000,"18-16") -> 0 | J11: =RANK(I11,$C$344:$C$363) -> 1 | K11: 1 | M11: 1 | N11: 6 | O11: =COUNTIF(入力シート!$L$2:$L$1000,"1-6") -> 0 | P11: 1 | R11: 2 | S11: 7 | T11: =COUNTIF(入力シート!$L$2:$L$1000,"2-7") -> 0 | U11: 1 | W11: 3 | X11: 6 | Y11: =COUNTIF(入力シート!$L$2:$L$1000,"3-6") -> 0 | Z11: 1 | AB11: 4 | AC11: 7 | AD11: =COUNTIF(入力シート!$L$2:$L$1000,"4-7") -> 0 | AE11: 1 | AG11: 5 | AH11: 2 | AI11: =COUNTIF(入力シート!$L$2:$L$1000,"5-2") -> 0 | AJ11: 1 | AL11: 6 | AM11: 7 | AN11: =COUNTIF(入力シート!$L$2:$L$1000,"6-7") -> 0 | AO11: 1 | AQ11: 7 | AR11: 8 | AS11: =COUNTIF(入力シート!$L$2:$L$1000,"7-8") -> 0 | AT11: 1 | AV11: 8 | AW11: 5 | AX11: =COUNTIF(入力シート!$L$2:$L$1000,"8-5") -> 0 | AY11: 1 | BA11: 9 | BB11: 8 | BC11: =COUNTIF(入力シート!$L$2:$L$1000,"9-8") -> 0 | BD11: 1 | BF11: 10 | BG11: 17 | BH11: =COUNTIF(入力シート!$L$2:$L$1000,"10-17") -> 0 | BI11: 1 | BK11: 11 | BL11: 4 | BM11: =COUNTIF(入力シート!$L$2:$L$1000,"11-4") -> 0 | BN11: 1 | BP11: 12 | BQ11: 19 | BR11: =COUNTIF(入力シート!$L$2:$L$1000,"12-19") -> 0 | BS11: 1 | BU11: 13 | BV11: 12 | BW11: =COUNTIF(入力シート!$L$2:$L$1000,"13-12") -> 0 | BX11: 1 | BZ11: 14 | CA11: 11 | CB11: =COUNTIF(入力シート!$L$2:$L$1000,"14-11") -> 0 | CC11: 1 | CE11: 15 | CF11: 3 | CG11: =COUNTIF(入力シート!$L$2:$L$1000,"15-3") -> 0 | CH11: 1 | CJ11: 16 | CK11: 13 | CL11: =COUNTIF(入力シート!$L$2:$L$1000,"16-13") -> 0 | CM11: 1 | CO11: 17 | CP11: 1 | CQ11: =COUNTIF(入力シート!$L$2:$L$1000,"17-1") -> 0 | CR11: 1 | CT11: 18 | CU11: 17 | CV11: =COUNTIF(入力シート!$L$2:$L$1000,"18-17") -> 0 | CW11: 1 | CY11: 19 | CZ11: 17 | DA11: =COUNTIF(入力シート!$L$2:$L$1000,"19-17") -> 0 | DB11: 1 | DD11: 20 | DE11: 8 | DF11: =COUNTIF(入力シート!$L$2:$L$1000,"20-8") -> 0 | DG11: 1
A12: 1 | B12: 9 | C12: =COUNTIF(入力シート!$L$2:$L$1000,"1-9") -> 0 | D12: 1 | E12: 1 | G12: 10 | H12: 16 | I12: =COUNTIF(入力シート!$L$2:$L$1000,"10-16") -> 0 | J12: =RANK(I12,$C$184:$C$203) -> 1 | K12: 1 | M12: 1 | N12: 7 | O12: =COUNTIF(入力シート!$L$2:$L$1000,"1-7") -> 0 | P12: 1 | R12: 2 | S12: 8 | T12: =COUNTIF(入力シート!$L$2:$L$1000,"2-8") -> 0 | U12: 1 | W12: 3 | X12: 7 | Y12: =COUNTIF(入力シート!$L$2:$L$1000,"3-7") -> 0 | Z12: 1 | AB12: 4 | AC12: 8 | AD12: =COUNTIF(入力シート!$L$2:$L$1000,"4-8") -> 0 | AE12: 1 | AG12: 5 | AH12: 3 | AI12: =COUNTIF(入力シート!$L$2:$L$1000,"5-3") -> 0 | AJ12: 1 | AL12: 6 | AM12: 8 | AN12: =COUNTIF(入力シート!$L$2:$L$1000,"6-8") -> 0 | AO12: 1 | AQ12: 7 | AR12: 9 | AS12: =COUNTIF(入力シート!$L$2:$L$1000,"7-9") -> 0 | AT12: 1 | AV12: 8 | AW12: 6 | AX12: =COUNTIF(入力シート!$L$2:$L$1000,"8-6") -> 0 | AY12: 1 | BA12: 9 | BB12: 9 | BC12: =COUNTIF(入力シート!$L$2:$L$1000,"9-9") -> 0 | BD12: 1 | BF12: 10 | BG12: 2 | BH12: =COUNTIF(入力シート!$L$2:$L$1000,"10-2") -> 0 | BI12: 1 | BK12: 11 | BL12: 5 | BM12: =COUNTIF(入力シート!$L$2:$L$1000,"11-5") -> 0 | BN12: 1 | BP12: 12 | BQ12: 13 | BR12: =COUNTIF(入力シート!$L$2:$L$1000,"12-13") -> 0 | BS12: 1 | BU12: 13 | BV12: 1 | BW12: =COUNTIF(入力シート!$L$2:$L$1000,"13-1") -> 0 | BX12: 1 | BZ12: 14 | CA12: 1 | CB12: =COUNTIF(入力シート!$L$2:$L$1000,"14-1") -> 0 | CC12: 1 | CE12: 15 | CF12: 6 | CG12: =COUNTIF(入力シート!$L$2:$L$1000,"15-6") -> 0 | CH12: 1 | CJ12: 16 | CK12: 1 | CL12: =COUNTIF(入力シート!$L$2:$L$1000,"16-1") -> 0 | CM12: 1 | CO12: 17 | CP12: 2 | CQ12: =COUNTIF(入力シート!$L$2:$L$1000,"17-2") -> 0 | CR12: 1 | CT12: 18 | CU12: 19 | CV12: =COUNTIF(入力シート!$L$2:$L$1000,"18-19") -> 0 | CW12: 1 | CY12: 19 | CZ12: 18 | DA12: =COUNTIF(入力シート!$L$2:$L$1000,"19-18") -> 0 | DB12: 1 | DD12: 20 | DE12: 9 | DF12: =COUNTIF(入力シート!$L$2:$L$1000,"20-9") -> 0 | DG12: 1
A13: 1 | B13: 10 | C13: =COUNTIF(入力シート!$L$2:$L$1000,"1-10") -> 0 | D13: 1 | E13: 1 | G13: 16 | H13: 10 | I13: =COUNTIF(入力シート!$L$2:$L$1000,"16-10") -> 0 | J13: =RANK(I13,$C$304:$C$323) -> 1 | K13: 1 | M13: 1 | N13: 8 | O13: =COUNTIF(入力シート!$L$2:$L$1000,"1-8") -> 0 | P13: 1 | R13: 2 | S13: 9 | T13: =COUNTIF(入力シート!$L$2:$L$1000,"2-9") -> 0 | U13: 1 | W13: 3 | X13: 8 | Y13: =COUNTIF(入力シート!$L$2:$L$1000,"3-8") -> 0 | Z13: 1 | AB13: 4 | AC13: 9 | AD13: =COUNTIF(入力シート!$L$2:$L$1000,"4-9") -> 0 | AE13: 1 | AG13: 5 | AH13: 7 | AI13: =COUNTIF(入力シート!$L$2:$L$1000,"5-7") -> 0 | AJ13: 1 | AL13: 6 | AM13: 9 | AN13: =COUNTIF(入力シート!$L$2:$L$1000,"6-9") -> 0 | AO13: 1 | AQ13: 7 | AR13: 10 | AS13: =COUNTIF(入力シート!$L$2:$L$1000,"7-10") -> 0 | AT13: 1 | AV13: 8 | AW13: 7 | AX13: =COUNTIF(入力シート!$L$2:$L$1000,"8-7") -> 0 | AY13: 1 | BA13: 9 | BB13: 10 | BC13: =COUNTIF(入力シート!$L$2:$L$1000,"9-10") -> 0 | BD13: 1 | BF13: 10 | BG13: 5 | BH13: =COUNTIF(入力シート!$L$2:$L$1000,"10-5") -> 0 | BI13: 1 | BK13: 11 | BL13: 6 | BM13: =COUNTIF(入力シート!$L$2:$L$1000,"11-6") -> 0 | BN13: 1 | BP13: 12 | BQ13: 1 | BR13: =COUNTIF(入力シート!$L$2:$L$1000,"12-1") -> 0 | BS13: 1 | BU13: 13 | BV13: 2 | BW13: =COUNTIF(入力シート!$L$2:$L$1000,"13-2") -> 0 | BX13: 1 | BZ13: 14 | CA13: 2 | CB13: =COUNTIF(入力シート!$L$2:$L$1000,"14-2") -> 0 | CC13: 1 | CE13: 15 | CF13: 13 | CG13: =COUNTIF(入力シート!$L$2:$L$1000,"15-13") -> 0 | CH13: 1 | CJ13: 16 | CK13: 5 | CL13: =COUNTIF(入力シート!$L$2:$L$1000,"16-5") -> 0 | CM13: 1 | CO13: 17 | CP13: 3 | CQ13: =COUNTIF(入力シート!$L$2:$L$1000,"17-3") -> 0 | CR13: 1 | CT13: 18 | CU13: 1 | CV13: =COUNTIF(入力シート!$L$2:$L$1000,"18-1") -> 0 | CW13: 1 | CY13: 19 | CZ13: 1 | DA13: =COUNTIF(入力シート!$L$2:$L$1000,"19-1") -> 0 | DB13: 1 | DD13: 20 | DE13: 10 | DF13: =COUNTIF(入力シート!$L$2:$L$1000,"20-10") -> 0 | DG13: 1
A14: 1 | B14: 11 | C14: =COUNTIF(入力シート!$L$2:$L$1000,"1-11") -> 0 | D14: 1 | E14: 1 | G14: 10 | H14: 18 | I14: =COUNTIF(入力シート!$L$2:$L$1000,"10-18") -> 0 | J14: =RANK(I14,$C$184:$C$203) -> 1 | K14: 1 | M14: 1 | N14: 9 | O14: =COUNTIF(入力シート!$L$2:$L$1000,"1-9") -> 0 | P14: 1 | R14: 2 | S14: 10 | T14: =COUNTIF(入力シート!$L$2:$L$1000,"2-10") -> 0 | U14: 1 | W14: 3 | X14: 9 | Y14: =COUNTIF(入力シート!$L$2:$L$1000,"3-9") -> 0 | Z14: 1 | AB14: 4 | AC14: 11 | AD14: =COUNTIF(入力シート!$L$2:$L$1000,"4-11") -> 0 | AE14: 1 | AG14: 5 | AH14: 8 | AI14: =COUNTIF(入力シート!$L$2:$L$1000,"5-8") -> 0 | AJ14: 1 | AL14: 6 | AM14: 10 | AN14: =COUNTIF(入力シート!$L$2:$L$1000,"6-10") -> 0 | AO14: 1 | AQ14: 7 | AR14: 11 | AS14: =COUNTIF(入力シート!$L$2:$L$1000,"7-11") -> 0 | AT14: 1 | AV14: 8 | AW14: 9 | AX14: =COUNTIF(入力シート!$L$2:$L$1000,"8-9") -> 0 | AY14: 1 | BA14: 9 | BB14: 11 | BC14: =COUNTIF(入力シート!$L$2:$L$1000,"9-11") -> 0 | BD14: 1 | BF14: 10 | BG14: 8 | BH14: =COUNTIF(入力シート!$L$2:$L$1000,"10-8") -> 0 | BI14: 1 | BK14: 11 | BL14: 7 | BM14: =COUNTIF(入力シート!$L$2:$L$1000,"11-7") -> 0 | BN14: 1 | BP14: 12 | BQ14: 2 | BR14: =COUNTIF(入力シート!$L$2:$L$1000,"12-2") -> 0 | BS14: 1 | BU14: 13 | BV14: 3 | BW14: =COUNTIF(入力シート!$L$2:$L$1000,"13-3") -> 0 | BX14: 1 | BZ14: 14 | CA14: 3 | CB14: =COUNTIF(入力シート!$L$2:$L$1000,"14-3") -> 0 | CC14: 1 | CE14: 15 | CF14: 1 | CG14: =COUNTIF(入力シート!$L$2:$L$1000,"15-1") -> 0 | CH14: 1 | CJ14: 16 | CK14: 11 | CL14: =COUNTIF(入力シート!$L$2:$L$1000,"16-11") -> 0 | CM14: 1 | CO14: 17 | CP14: 4 | CQ14: =COUNTIF(入力シート!$L$2:$L$1000,"17-4") -> 0 | CR14: 1 | CT14: 18 | CU14: 3 | CV14: =COUNTIF(入力シート!$L$2:$L$1000,"18-3") -> 0 | CW14: 1 | CY14: 19 | CZ14: 2 | DA14: =COUNTIF(入力シート!$L$2:$L$1000,"19-2") -> 0 | DB14: 1 | DD14: 20 | DE14: 11 | DF14: =COUNTIF(入力シート!$L$2:$L$1000,"20-11") -> 0 | DG14: 1
A15: 1 | B15: 12 | C15: =COUNTIF(入力シート!$L$2:$L$1000,"1-12") -> 0 | D15: 1 | E15: 1 | G15: 18 | H15: 10 | I15: =COUNTIF(入力シート!$L$2:$L$1000,"18-10") -> 0 | J15: =RANK(I15,$C$344:$C$363) -> 1 | K15: 1 | M15: 1 | N15: 10 | O15: =COUNTIF(入力シート!$L$2:$L$1000,"1-10") -> 0 | P15: 1 | R15: 2 | S15: 11 | T15: =COUNTIF(入力シート!$L$2:$L$1000,"2-11") -> 0 | U15: 1 | W15: 3 | X15: 10 | Y15: =COUNTIF(入力シート!$L$2:$L$1000,"3-10") -> 0 | Z15: 1 | AB15: 4 | AC15: 12 | AD15: =COUNTIF(入力シート!$L$2:$L$1000,"4-12") -> 0 | AE15: 1 | AG15: 5 | AH15: 9 | AI15: =COUNTIF(入力シート!$L$2:$L$1000,"5-9") -> 0 | AJ15: 1 | AL15: 6 | AM15: 11 | AN15: =COUNTIF(入力シート!$L$2:$L$1000,"6-11") -> 0 | AO15: 1 | AQ15: 7 | AR15: 12 | AS15: =COUNTIF(入力シート!$L$2:$L$1000,"7-12") -> 0 | AT15: 1 | AV15: 8 | AW15: 11 | AX15: =COUNTIF(入力シート!$L$2:$L$1000,"8-11") -> 0 | AY15: 1 | BA15: 9 | BB15: 12 | BC15: =COUNTIF(入力シート!$L$2:$L$1000,"9-12") -> 0 | BD15: 1 | BF15: 10 | BG15: 12 | BH15: =COUNTIF(入力シート!$L$2:$L$1000,"10-12") -> 0 | BI15: 1 | BK15: 11 | BL15: 8 | BM15: =COUNTIF(入力シート!$L$2:$L$1000,"11-8") -> 0 | BN15: 1 | BP15: 12 | BQ15: 3 | BR15: =COUNTIF(入力シート!$L$2:$L$1000,"12-3") -> 0 | BS15: 1 | BU15: 13 | BV15: 4 | BW15: =COUNTIF(入力シート!$L$2:$L$1000,"13-4") -> 0 | BX15: 1 | BZ15: 14 | CA15: 4 | CB15: =COUNTIF(入力シート!$L$2:$L$1000,"14-4") -> 0 | CC15: 1 | CE15: 15 | CF15: 4 | CG15: =COUNTIF(入力シート!$L$2:$L$1000,"15-4") -> 0 | CH15: 1 | CJ15: 16 | CK15: 2 | CL15: =COUNTIF(入力シート!$L$2:$L$1000,"16-2") -> 0 | CM15: 1 | CO15: 17 | CP15: 5 | CQ15: =COUNTIF(入力シート!$L$2:$L$1000,"17-5") -> 0 | CR15: 1 | CT15: 18 | CU15: 5 | CV15: =COUNTIF(入力シート!$L$2:$L$1000,"18-5") -> 0 | CW15: 1 | CY15: 19 | CZ15: 3 | DA15: =COUNTIF(入力シート!$L$2:$L$1000,"19-3") -> 0 | DB15: 1 | DD15: 20 | DE15: 12 | DF15: =COUNTIF(入力シート!$L$2:$L$1000,"20-12") -> 0 | DG15: 1
A16: 1 | B16: 13 | C16: =COUNTIF(入力シート!$L$2:$L$1000,"1-13") -> 0 | D16: 1 | E16: 1 | G16: 15 | H16: 15 | I16: =COUNTIF(入力シート!$L$2:$L$1000,"15-15") -> 0 | J16: =RANK(I16,$C$284:$C$303) -> 1 | K16: 1 | M16: 1 | N16: 11 | O16: =COUNTIF(入力シート!$L$2:$L$1000,"1-11") -> 0 | P16: 1 | R16: 2 | S16: 12 | T16: =COUNTIF(入力シート!$L$2:$L$1000,"2-12") -> 0 | U16: 1 | W16: 3 | X16: 11 | Y16: =COUNTIF(入力シート!$L$2:$L$1000,"3-11") -> 0 | Z16: 1 | AB16: 4 | AC16: 13 | AD16: =COUNTIF(入力シート!$L$2:$L$1000,"4-13") -> 0 | AE16: 1 | AG16: 5 | AH16: 10 | AI16: =COUNTIF(入力シート!$L$2:$L$1000,"5-10") -> 0 | AJ16: 1 | AL16: 6 | AM16: 12 | AN16: =COUNTIF(入力シート!$L$2:$L$1000,"6-12") -> 0 | AO16: 1 | AQ16: 7 | AR16: 13 | AS16: =COUNTIF(入力シート!$L$2:$L$1000,"7-13") -> 0 | AT16: 1 | AV16: 8 | AW16: 12 | AX16: =COUNTIF(入力シート!$L$2:$L$1000,"8-12") -> 0 | AY16: 1 | BA16: 9 | BB16: 13 | BC16: =COUNTIF(入力シート!$L$2:$L$1000,"9-13") -> 0 | BD16: 1 | BF16: 10 | BG16: 1 | BH16: =COUNTIF(入力シート!$L$2:$L$1000,"10-1") -> 0 | BI16: 1 | BK16: 11 | BL16: 9 | BM16: =COUNTIF(入力シート!$L$2:$L$1000,"11-9") -> 0 | BN16: 1 | BP16: 12 | BQ16: 4 | BR16: =COUNTIF(入力シート!$L$2:$L$1000,"12-4") -> 0 | BS16: 1 | BU16: 13 | BV16: 5 | BW16: =COUNTIF(入力シート!$L$2:$L$1000,"13-5") -> 0 | BX16: 1 | BZ16: 14 | CA16: 5 | CB16: =COUNTIF(入力シート!$L$2:$L$1000,"14-5") -> 0 | CC16: 1 | CE16: 15 | CF16: 5 | CG16: =COUNTIF(入力シート!$L$2:$L$1000,"15-5") -> 0 | CH16: 1 | CJ16: 16 | CK16: 3 | CL16: =COUNTIF(入力シート!$L$2:$L$1000,"16-3") -> 0 | CM16: 1 | CO16: 17 | CP16: 6 | CQ16: =COUNTIF(入力シート!$L$2:$L$1000,"17-6") -> 0 | CR16: 1 | CT16: 18 | CU16: 8 | CV16: =COUNTIF(入力シート!$L$2:$L$1000,"18-8") -> 0 | CW16: 1 | CY16: 19 | CZ16: 4 | DA16: =COUNTIF(入力シート!$L$2:$L$1000,"19-4") -> 0 | DB16: 1 | DD16: 20 | DE16: 13 | DF16: =COUNTIF(入力シート!$L$2:$L$1000,"20-13") -> 0 | DG16: 1
A17: 1 | B17: 14 | C17: =COUNTIF(入力シート!$L$2:$L$1000,"1-14") -> 0 | D17: 1 | E17: 1 | G17: 12 | H17: 18 | I17: =COUNTIF(入力シート!$L$2:$L$1000,"12-18") -> 0 | J17: =RANK(I17,$C$224:$C$243) -> 1 | K17: 1 | M17: 1 | N17: 12 | O17: =COUNTIF(入力シート!$L$2:$L$1000,"1-12") -> 0 | P17: 1 | R17: 2 | S17: 13 | T17: =COUNTIF(入力シート!$L$2:$L$1000,"2-13") -> 0 | U17: 1 | W17: 3 | X17: 12 | Y17: =COUNTIF(入力シート!$L$2:$L$1000,"3-12") -> 0 | Z17: 1 | AB17: 4 | AC17: 14 | AD17: =COUNTIF(入力シート!$L$2:$L$1000,"4-14") -> 0 | AE17: 1 | AG17: 5 | AH17: 11 | AI17: =COUNTIF(入力シート!$L$2:$L$1000,"5-11") -> 0 | AJ17: 1 | AL17: 6 | AM17: 13 | AN17: =COUNTIF(入力シート!$L$2:$L$1000,"6-13") -> 0 | AO17: 1 | AQ17: 7 | AR17: 14 | AS17: =COUNTIF(入力シート!$L$2:$L$1000,"7-14") -> 0 | AT17: 1 | AV17: 8 | AW17: 13 | AX17: =COUNTIF(入力シート!$L$2:$L$1000,"8-13") -> 0 | AY17: 1 | BA17: 9 | BB17: 14 | BC17: =COUNTIF(入力シート!$L$2:$L$1000,"9-14") -> 0 | BD17: 1 | BF17: 10 | BG17: 3 | BH17: =COUNTIF(入力シート!$L$2:$L$1000,"10-3") -> 0 | BI17: 1 | BK17: 11 | BL17: 10 | BM17: =COUNTIF(入力シート!$L$2:$L$1000,"11-10") -> 0 | BN17: 1 | BP17: 12 | BQ17: 5 | BR17: =COUNTIF(入力シート!$L$2:$L$1000,"12-5") -> 0 | BS17: 1 | BU17: 13 | BV17: 6 | BW17: =COUNTIF(入力シート!$L$2:$L$1000,"13-6") -> 0 | BX17: 1 | BZ17: 14 | CA17: 6 | CB17: =COUNTIF(入力シート!$L$2:$L$1000,"14-6") -> 0 | CC17: 1 | CE17: 15 | CF17: 7 | CG17: =COUNTIF(入力シート!$L$2:$L$1000,"15-7") -> 0 | CH17: 1 | CJ17: 16 | CK17: 4 | CL17: =COUNTIF(入力シート!$L$2:$L$1000,"16-4") -> 0 | CM17: 1 | CO17: 17 | CP17: 7 | CQ17: =COUNTIF(入力シート!$L$2:$L$1000,"17-7") -> 0 | CR17: 1 | CT17: 18 | CU17: 2 | CV17: =COUNTIF(入力シート!$L$2:$L$1000,"18-2") -> 0 | CW17: 1 | CY17: 19 | CZ17: 5 | DA17: =COUNTIF(入力シート!$L$2:$L$1000,"19-5") -> 0 | DB17: 1 | DD17: 20 | DE17: 14 | DF17: =COUNTIF(入力シート!$L$2:$L$1000,"20-14") -> 0 | DG17: 1
A18: 1 | B18: 15 | C18: =COUNTIF(入力シート!$L$2:$L$1000,"1-15") -> 0 | D18: 1 | E18: 1 | G18: 18 | H18: 12 | I18: =COUNTIF(入力シート!$L$2:$L$1000,"18-12") -> 0 | J18: =RANK(I18,$C$344:$C$363) -> 1 | K18: 1 | M18: 1 | N18: 13 | O18: =COUNTIF(入力シート!$L$2:$L$1000,"1-13") -> 0 | P18: 1 | R18: 2 | S18: 14 | T18: =COUNTIF(入力シート!$L$2:$L$1000,"2-14") -> 0 | U18: 1 | W18: 3 | X18: 13 | Y18: =COUNTIF(入力シート!$L$2:$L$1000,"3-13") -> 0 | Z18: 1 | AB18: 4 | AC18: 15 | AD18: =COUNTIF(入力シート!$L$2:$L$1000,"4-15") -> 0 | AE18: 1 | AG18: 5 | AH18: 13 | AI18: =COUNTIF(入力シート!$L$2:$L$1000,"5-13") -> 0 | AJ18: 1 | AL18: 6 | AM18: 14 | AN18: =COUNTIF(入力シート!$L$2:$L$1000,"6-14") -> 0 | AO18: 1 | AQ18: 7 | AR18: 15 | AS18: =COUNTIF(入力シート!$L$2:$L$1000,"7-15") -> 0 | AT18: 1 | AV18: 8 | AW18: 14 | AX18: =COUNTIF(入力シート!$L$2:$L$1000,"8-14") -> 0 | AY18: 1 | BA18: 9 | BB18: 15 | BC18: =COUNTIF(入力シート!$L$2:$L$1000,"9-15") -> 0 | BD18: 1 | BF18: 10 | BG18: 4 | BH18: =COUNTIF(入力シート!$L$2:$L$1000,"10-4") -> 0 | BI18: 1 | BK18: 11 | BL18: 11 | BM18: =COUNTIF(入力シート!$L$2:$L$1000,"11-11") -> 0 | BN18: 1 | BP18: 12 | BQ18: 6 | BR18: =COUNTIF(入力シート!$L$2:$L$1000,"12-6") -> 0 | BS18: 1 | BU18: 13 | BV18: 7 | BW18: =COUNTIF(入力シート!$L$2:$L$1000,"13-7") -> 0 | BX18: 1 | BZ18: 14 | CA18: 7 | CB18: =COUNTIF(入力シート!$L$2:$L$1000,"14-7") -> 0 | CC18: 1 | CE18: 15 | CF18: 8 | CG18: =COUNTIF(入力シート!$L$2:$L$1000,"15-8") -> 0 | CH18: 1 | CJ18: 16 | CK18: 6 | CL18: =COUNTIF(入力シート!$L$2:$L$1000,"16-6") -> 0 | CM18: 1 | CO18: 17 | CP18: 8 | CQ18: =COUNTIF(入力シート!$L$2:$L$1000,"17-8") -> 0 | CR18: 1 | CT18: 18 | CU18: 4 | CV18: =COUNTIF(入力シート!$L$2:$L$1000,"18-4") -> 0 | CW18: 1 | CY18: 19 | CZ18: 6 | DA18: =COUNTIF(入力シート!$L$2:$L$1000,"19-6") -> 0 | DB18: 1 | DD18: 20 | DE18: 15 | DF18: =COUNTIF(入力シート!$L$2:$L$1000,"20-15") -> 0 | DG18: 1
A19: 1 | B19: 16 | C19: =COUNTIF(入力シート!$L$2:$L$1000,"1-16") -> 0 | D19: 1 | E19: 1 | G19: 12 | H19: 14 | I19: =COUNTIF(入力シート!$L$2:$L$1000,"12-14") -> 0 | J19: =RANK(I19,$C$224:$C$243) -> 1 | K19: 1 | M19: 1 | N19: 14 | O19: =COUNTIF(入力シート!$L$2:$L$1000,"1-14") -> 0 | P19: 1 | R19: 2 | S19: 16 | T19: =COUNTIF(入力シート!$L$2:$L$1000,"2-16") -> 0 | U19: 1 | W19: 3 | X19: 14 | Y19: =COUNTIF(入力シート!$L$2:$L$1000,"3-14") -> 0 | Z19: 1 | AB19: 4 | AC19: 16 | AD19: =COUNTIF(入力シート!$L$2:$L$1000,"4-16") -> 0 | AE19: 1 | AG19: 5 | AH19: 14 | AI19: =COUNTIF(入力シート!$L$2:$L$1000,"5-14") -> 0 | AJ19: 1 | AL19: 6 | AM19: 16 | AN19: =COUNTIF(入力シート!$L$2:$L$1000,"6-16") -> 0 | AO19: 1 | AQ19: 7 | AR19: 16 | AS19: =COUNTIF(入力シート!$L$2:$L$1000,"7-16") -> 0 | AT19: 1 | AV19: 8 | AW19: 15 | AX19: =COUNTIF(入力シート!$L$2:$L$1000,"8-15") -> 0 | AY19: 1 | BA19: 9 | BB19: 16 | BC19: =COUNTIF(入力シート!$L$2:$L$1000,"9-16") -> 0 | BD19: 1 | BF19: 10 | BG19: 6 | BH19: =COUNTIF(入力シート!$L$2:$L$1000,"10-6") -> 0 | BI19: 1 | BK19: 11 | BL19: 13 | BM19: =COUNTIF(入力シート!$L$2:$L$1000,"11-13") -> 0 | BN19: 1 | BP19: 12 | BQ19: 7 | BR19: =COUNTIF(入力シート!$L$2:$L$1000,"12-7") -> 0 | BS19: 1 | BU19: 13 | BV19: 8 | BW19: =COUNTIF(入力シート!$L$2:$L$1000,"13-8") -> 0 | BX19: 1 | BZ19: 14 | CA19: 8 | CB19: =COUNTIF(入力シート!$L$2:$L$1000,"14-8") -> 0 | CC19: 1 | CE19: 15 | CF19: 9 | CG19: =COUNTIF(入力シート!$L$2:$L$1000,"15-9") -> 0 | CH19: 1 | CJ19: 16 | CK19: 7 | CL19: =COUNTIF(入力シート!$L$2:$L$1000,"16-7") -> 0 | CM19: 1 | CO19: 17 | CP19: 9 | CQ19: =COUNTIF(入力シート!$L$2:$L$1000,"17-9") -> 0 | CR19: 1 | CT19: 18 | CU19: 6 | CV19: =COUNTIF(入力シート!$L$2:$L$1000,"18-6") -> 0 | CW19: 1 | CY19: 19 | CZ19: 7 | DA19: =COUNTIF(入力シート!$L$2:$L$1000,"19-7") -> 0 | DB19: 1 | DD19: 20 | DE19: 16 | DF19: =COUNTIF(入力シート!$L$2:$L$1000,"20-16") -> 0 | DG19: 1
A20: 1 | B20: 17 | C20: =COUNTIF(入力シート!$L$2:$L$1000,"1-17") -> 0 | D20: 1 | E20: 1 | G20: 14 | H20: 12 | I20: =COUNTIF(入力シート!$L$2:$L$1000,"14-12") -> 0 | J20: =RANK(I20,$C$264:$C$283) -> 1 | K20: 1 | M20: 1 | N20: 15 | O20: =COUNTIF(入力シート!$L$2:$L$1000,"1-15") -> 0 | P20: 1 | R20: 2 | S20: 17 | T20: =COUNTIF(入力シート!$L$2:$L$1000,"2-17") -> 0 | U20: 1 | W20: 3 | X20: 16 | Y20: =COUNTIF(入力シート!$L$2:$L$1000,"3-16") -> 0 | Z20: 1 | AB20: 4 | AC20: 17 | AD20: =COUNTIF(入力シート!$L$2:$L$1000,"4-17") -> 0 | AE20: 1 | AG20: 5 | AH20: 15 | AI20: =COUNTIF(入力シート!$L$2:$L$1000,"5-15") -> 0 | AJ20: 1 | AL20: 6 | AM20: 17 | AN20: =COUNTIF(入力シート!$L$2:$L$1000,"6-17") -> 0 | AO20: 1 | AQ20: 7 | AR20: 17 | AS20: =COUNTIF(入力シート!$L$2:$L$1000,"7-17") -> 0 | AT20: 1 | AV20: 8 | AW20: 16 | AX20: =COUNTIF(入力シート!$L$2:$L$1000,"8-16") -> 0 | AY20: 1 | BA20: 9 | BB20: 17 | BC20: =COUNTIF(入力シート!$L$2:$L$1000,"9-17") -> 0 | BD20: 1 | BF20: 10 | BG20: 7 | BH20: =COUNTIF(入力シート!$L$2:$L$1000,"10-7") -> 0 | BI20: 1 | BK20: 11 | BL20: 15 | BM20: =COUNTIF(入力シート!$L$2:$L$1000,"11-15") -> 0 | BN20: 1 | BP20: 12 | BQ20: 8 | BR20: =COUNTIF(入力シート!$L$2:$L$1000,"12-8") -> 0 | BS20: 1 | BU20: 13 | BV20: 9 | BW20: =COUNTIF(入力シート!$L$2:$L$1000,"13-9") -> 0 | BX20: 1 | BZ20: 14 | CA20: 9 | CB20: =COUNTIF(入力シート!$L$2:$L$1000,"14-9") -> 0 | CC20: 1 | CE20: 15 | CF20: 11 | CG20: =COUNTIF(入力シート!$L$2:$L$1000,"15-11") -> 0 | CH20: 1 | CJ20: 16 | CK20: 8 | CL20: =COUNTIF(入力シート!$L$2:$L$1000,"16-8") -> 0 | CM20: 1 | CO20: 17 | CP20: 11 | CQ20: =COUNTIF(入力シート!$L$2:$L$1000,"17-11") -> 0 | CR20: 1 | CT20: 18 | CU20: 7 | CV20: =COUNTIF(入力シート!$L$2:$L$1000,"18-7") -> 0 | CW20: 1 | CY20: 19 | CZ20: 8 | DA20: =COUNTIF(入力シート!$L$2:$L$1000,"19-8") -> 0 | DB20: 1 | DD20: 20 | DE20: 17 | DF20: =COUNTIF(入力シート!$L$2:$L$1000,"20-17") -> 0 | DG20: 1
A21: 1 | B21: 18 | C21: =COUNTIF(入力シート!$L$2:$L$1000,"1-18") -> 0 | D21: 1 | E21: 1 | G21: 14 | H21: 14 | I21: =COUNTIF(入力シート!$L$2:$L$1000,"14-14") -> 0 | J21: =RANK(I21,$C$264:$C$283) -> 1 | K21: 1 | M21: 1 | N21: 17 | O21: =COUNTIF(入力シート!$L$2:$L$1000,"1-17") -> 0 | P21: 1 | R21: 2 | S21: 18 | T21: =COUNTIF(入力シート!$L$2:$L$1000,"2-18") -> 0 | U21: 1 | W21: 3 | X21: 17 | Y21: =COUNTIF(入力シート!$L$2:$L$1000,"3-17") -> 0 | Z21: 1 | AB21: 4 | AC21: 18 | AD21: =COUNTIF(入力シート!$L$2:$L$1000,"4-18") -> 0 | AE21: 1 | AG21: 5 | AH21: 17 | AI21: =COUNTIF(入力シート!$L$2:$L$1000,"5-17") -> 0 | AJ21: 1 | AL21: 6 | AM21: 18 | AN21: =COUNTIF(入力シート!$L$2:$L$1000,"6-18") -> 0 | AO21: 1 | AQ21: 7 | AR21: 18 | AS21: =COUNTIF(入力シート!$L$2:$L$1000,"7-18") -> 0 | AT21: 1 | AV21: 8 | AW21: 17 | AX21: =COUNTIF(入力シート!$L$2:$L$1000,"8-17") -> 0 | AY21: 1 | BA21: 9 | BB21: 18 | BC21: =COUNTIF(入力シート!$L$2:$L$1000,"9-18") -> 0 | BD21: 1 | BF21: 10 | BG21: 9 | BH21: =COUNTIF(入力シート!$L$2:$L$1000,"10-9") -> 0 | BI21: 1 | BK21: 11 | BL21: 17 | BM21: =COUNTIF(入力シート!$L$2:$L$1000,"11-17") -> 0 | BN21: 1 | BP21: 12 | BQ21: 9 | BR21: =COUNTIF(入力シート!$L$2:$L$1000,"12-9") -> 0 | BS21: 1 | BU21: 13 | BV21: 11 | BW21: =COUNTIF(入力シート!$L$2:$L$1000,"13-11") -> 0 | BX21: 1 | BZ21: 14 | CA21: 17 | CB21: =COUNTIF(入力シート!$L$2:$L$1000,"14-17") -> 0 | CC21: 1 | CE21: 15 | CF21: 17 | CG21: =COUNTIF(入力シート!$L$2:$L$1000,"15-17") -> 0 | CH21: 1 | CJ21: 16 | CK21: 9 | CL21: =COUNTIF(入力シート!$L$2:$L$1000,"16-9") -> 0 | CM21: 1 | CO21: 17 | CP21: 15 | CQ21: =COUNTIF(入力シート!$L$2:$L$1000,"17-15") -> 0 | CR21: 1 | CT21: 18 | CU21: 9 | CV21: =COUNTIF(入力シート!$L$2:$L$1000,"18-9") -> 0 | CW21: 1 | CY21: 19 | CZ21: 9 | DA21: =COUNTIF(入力シート!$L$2:$L$1000,"19-9") -> 0 | DB21: 1 | DD21: 20 | DE21: 18 | DF21: =COUNTIF(入力シート!$L$2:$L$1000,"20-18") -> 0 | DG21: 1
A22: 1 | B22: 19 | C22: =COUNTIF(入力シート!$L$2:$L$1000,"1-19") -> 0 | D22: 1 | E22: 1 | G22: 15 | H22: 18 | I22: =COUNTIF(入力シート!$L$2:$L$1000,"15-18") -> 0 | J22: =RANK(I22,$C$284:$C$303) -> 1 | K22: 1 | M22: 1 | N22: 19 | O22: =COUNTIF(入力シート!$L$2:$L$1000,"1-19") -> 0 | P22: 1 | R22: 2 | S22: 19 | T22: =COUNTIF(入力シート!$L$2:$L$1000,"2-19") -> 0 | U22: 1 | W22: 3 | X22: 19 | Y22: =COUNTIF(入力シート!$L$2:$L$1000,"3-19") -> 0 | Z22: 1 | AB22: 4 | AC22: 19 | AD22: =COUNTIF(入力シート!$L$2:$L$1000,"4-19") -> 0 | AE22: 1 | AG22: 5 | AH22: 19 | AI22: =COUNTIF(入力シート!$L$2:$L$1000,"5-19") -> 0 | AJ22: 1 | AL22: 6 | AM22: 19 | AN22: =COUNTIF(入力シート!$L$2:$L$1000,"6-19") -> 0 | AO22: 1 | AQ22: 7 | AR22: 19 | AS22: =COUNTIF(入力シート!$L$2:$L$1000,"7-19") -> 0 | AT22: 1 | AV22: 8 | AW22: 19 | AX22: =COUNTIF(入力シート!$L$2:$L$1000,"8-19") -> 0 | AY22: 1 | BA22: 9 | BB22: 19 | BC22: =COUNTIF(入力シート!$L$2:$L$1000,"9-19") -> 0 | BD22: 1 | BF22: 10 | BG22: 11 | BH22: =COUNTIF(入力シート!$L$2:$L$1000,"10-11") -> 0 | BI22: 1 | BK22: 11 | BL22: 18 | BM22: =COUNTIF(入力シート!$L$2:$L$1000,"11-18") -> 0 | BN22: 1 | BP22: 12 | BQ22: 11 | BR22: =COUNTIF(入力シート!$L$2:$L$1000,"12-11") -> 0 | BS22: 1 | BU22: 13 | BV22: 17 | BW22: =COUNTIF(入力シート!$L$2:$L$1000,"13-17") -> 0 | BX22: 1 | BZ22: 14 | CA22: 19 | CB22: =COUNTIF(入力シート!$L$2:$L$1000,"14-19") -> 0 | CC22: 1 | CE22: 15 | CF22: 19 | CG22: =COUNTIF(入力シート!$L$2:$L$1000,"15-19") -> 0 | CH22: 1 | CJ22: 16 | CK22: 17 | CL22: =COUNTIF(入力シート!$L$2:$L$1000,"16-17") -> 0 | CM22: 1 | CO22: 17 | CP22: 19 | CQ22: =COUNTIF(入力シート!$L$2:$L$1000,"17-19") -> 0 | CR22: 1 | CT22: 18 | CU22: 11 | CV22: =COUNTIF(入力シート!$L$2:$L$1000,"18-11") -> 0 | CW22: 1 | CY22: 19 | CZ22: 15 | DA22: =COUNTIF(入力シート!$L$2:$L$1000,"19-15") -> 0 | DB22: 1 | DD22: 20 | DE22: 19 | DF22: =COUNTIF(入力シート!$L$2:$L$1000,"20-19") -> 0 | DG22: 1
A23: 1 | B23: 20 | C23: =COUNTIF(入力シート!$L$2:$L$1000,"1-20") -> 0 | D23: 1 | E23: 1 | G23: 14 | H23: 18 | I23: =COUNTIF(入力シート!$L$2:$L$1000,"14-18") -> 0 | J23: =RANK(I23,$C$264:$C$283) -> 1 | K23: 1 | M23: 1 | N23: 20 | O23: =COUNTIF(入力シート!$L$2:$L$1000,"1-20") -> 0 | P23: 1 | R23: 2 | S23: 20 | T23: =COUNTIF(入力シート!$L$2:$L$1000,"2-20") -> 0 | U23: 1 | W23: 3 | X23: 20 | Y23: =COUNTIF(入力シート!$L$2:$L$1000,"3-20") -> 0 | Z23: 1 | AB23: 4 | AC23: 20 | AD23: =COUNTIF(入力シート!$L$2:$L$1000,"4-20") -> 0 | AE23: 1 | AG23: 5 | AH23: 20 | AI23: =COUNTIF(入力シート!$L$2:$L$1000,"5-20") -> 0 | AJ23: 1 | AL23: 6 | AM23: 20 | AN23: =COUNTIF(入力シート!$L$2:$L$1000,"6-20") -> 0 | AO23: 1 | AQ23: 7 | AR23: 20 | AS23: =COUNTIF(入力シート!$L$2:$L$1000,"7-20") -> 0 | AT23: 1 | AV23: 8 | AW23: 20 | AX23: =COUNTIF(入力シート!$L$2:$L$1000,"8-20") -> 0 | AY23: 1 | BA23: 9 | BB23: 20 | BC23: =COUNTIF(入力シート!$L$2:$L$1000,"9-20") -> 0 | BD23: 1 | BF23: 10 | BG23: 20 | BH23: =COUNTIF(入力シート!$L$2:$L$1000,"10-20") -> 0 | BI23: 1 | BK23: 11 | BL23: 20 | BM23: =COUNTIF(入力シート!$L$2:$L$1000,"11-20") -> 0 | BN23: 1 | BP23: 12 | BQ23: 20 | BR23: =COUNTIF(入力シート!$L$2:$L$1000,"12-20") -> 0 | BS23: 1 | BU23: 13 | BV23: 20 | BW23: =COUNTIF(入力シート!$L$2:$L$1000,"13-20") -> 0 | BX23: 1 | BZ23: 14 | CA23: 20 | CB23: =COUNTIF(入力シート!$L$2:$L$1000,"14-20") -> 0 | CC23: 1 | CE23: 15 | CF23: 20 | CG23: =COUNTIF(入力シート!$L$2:$L$1000,"15-20") -> 0 | CH23: 1 | CJ23: 16 | CK23: 20 | CL23: =COUNTIF(入力シート!$L$2:$L$1000,"16-20") -> 0 | CM23: 1 | CO23: 17 | CP23: 20 | CQ23: =COUNTIF(入力シート!$L$2:$L$1000,"17-20") -> 0 | CR23: 1 | CT23: 18 | CU23: 20 | CV23: =COUNTIF(入力シート!$L$2:$L$1000,"18-20") -> 0 | CW23: 1 | CY23: 19 | CZ23: 20 | DA23: =COUNTIF(入力シート!$L$2:$L$1000,"19-20") -> 0 | DB23: 1 | DD23: 20 | DE23: 20 | DF23: =COUNTIF(入力シート!$L$2:$L$1000,"20-20") -> 0 | DG23: 1
A24: 2 | B24: 1 | C24: =COUNTIF(入力シート!$L$2:$L$1000,"2-1") -> 0 | D24: =RANK(C24,$C$24:$C$43) -> 1 | E24: 1 | G24: 5 | H24: 5 | I24: =COUNTIF(入力シート!$L$2:$L$1000,"5-5") -> 0 | J24: =RANK(I24,$C$84:$C$103) -> 1 | K24: 1
A25: 2 | B25: 2 | C25: =COUNTIF(入力シート!$L$2:$L$1000,"2-2") -> 0 | D25: =RANK(C25,$C$24:$C$43) -> 1 | E25: 1 | G25: 10 | H25: 15 | I25: =COUNTIF(入力シート!$L$2:$L$1000,"10-15") -> 0 | J25: =RANK(I25,$C$184:$C$203) -> 1 | K25: 1
A26: 2 | B26: 3 | C26: =COUNTIF(入力シート!$L$2:$L$1000,"2-3") -> 0 | D26: 1 | E26: 1 | G26: 15 | H26: 10 | I26: =COUNTIF(入力シート!$L$2:$L$1000,"15-10") -> 0 | J26: =RANK(I26,$C$284:$C$303) -> 1 | K26: 1
A27: 2 | B27: 4 | C27: =COUNTIF(入力シート!$L$2:$L$1000,"2-4") -> 0 | D27: 1 | E27: 1 | G27: 18 | H27: 13 | I27: =COUNTIF(入力シート!$L$2:$L$1000,"18-13") -> 0 | J27: =RANK(I27,$C$344:$C$363) -> 1 | K27: 1
A28: 2 | B28: 5 | C28: =COUNTIF(入力シート!$L$2:$L$1000,"2-5") -> 0 | D28: 1 | E28: 1 | G28: 12 | H28: 10 | I28: =COUNTIF(入力シート!$L$2:$L$1000,"12-10") -> 0 | J28: =RANK(I28,$C$224:$C$243) -> 1 | K28: 1
A29: 2 | B29: 6 | C29: =COUNTIF(入力シート!$L$2:$L$1000,"2-6") -> 0 | D29: 1 | E29: 1 | G29: 12 | H29: 16 | I29: =COUNTIF(入力シート!$L$2:$L$1000,"12-16") -> 0 | J29: =RANK(I29,$C$224:$C$243) -> 1 | K29: 1
A30: 2 | B30: 7 | C30: =COUNTIF(入力シート!$L$2:$L$1000,"2-7") -> 0 | D30: 1 | E30: 1 | G30: 14 | H30: 15 | I30: =COUNTIF(入力シート!$L$2:$L$1000,"14-15") -> 0 | J30: =RANK(I30,$C$264:$C$283) -> 1 | K30: 1
A31: 2 | B31: 8 | C31: =COUNTIF(入力シート!$L$2:$L$1000,"2-8") -> 0 | D31: 1 | E31: 1 | G31: 16 | H31: 12 | I31: =COUNTIF(入力シート!$L$2:$L$1000,"16-12") -> 0 | J31: =RANK(I31,$C$304:$C$323) -> 1 | K31: 1
A32: 2 | B32: 9 | C32: =COUNTIF(入力シート!$L$2:$L$1000,"2-9") -> 0 | D32: 1 | E32: 1 | G32: 18 | H32: 14 | I32: =COUNTIF(入力シート!$L$2:$L$1000,"18-14") -> 0 | J32: =RANK(I32,$C$344:$C$363) -> 1 | K32: 1
A33: 2 | B33: 10 | C33: =COUNTIF(入力シート!$L$2:$L$1000,"2-10") -> 0 | D33: 1 | E33: 1 | G33: 10 | H33: 13 | I33: =COUNTIF(入力シート!$L$2:$L$1000,"10-13") -> 0 | J33: =RANK(I33,$C$184:$C$203) -> 1 | K33: 1
A34: 2 | B34: 11 | C34: =COUNTIF(入力シート!$L$2:$L$1000,"2-11") -> 0 | D34: 1 | E34: 1 | G34: 10 | H34: 14 | I34: =COUNTIF(入力シート!$L$2:$L$1000,"10-14") -> 0 | J34: =RANK(I34,$C$184:$C$203) -> 1 | K34: 1
A35: 2 | B35: 12 | C35: =COUNTIF(入力シート!$L$2:$L$1000,"2-12") -> 0 | D35: 1 | E35: 1 | G35: 13 | H35: 10 | I35: =COUNTIF(入力シート!$L$2:$L$1000,"13-10") -> 0 | J35: =RANK(I35,$C$244:$C$263) -> 1 | K35: 1
A36: 2 | B36: 13 | C36: =COUNTIF(入力シート!$L$2:$L$1000,"2-13") -> 0 | D36: 1 | E36: 1 | G36: 14 | H36: 10 | I36: =COUNTIF(入力シート!$L$2:$L$1000,"14-10") -> 0 | J36: =RANK(I36,$C$264:$C$283) -> 1 | K36: 1
A37: 2 | B37: 14 | C37: =COUNTIF(入力シート!$L$2:$L$1000,"2-14") -> 0 | D37: 1 | E37: 1 | G37: 15 | H37: 14 | I37: =COUNTIF(入力シート!$L$2:$L$1000,"15-14") -> 0 | J37: =RANK(I37,$C$284:$C$303) -> 1 | K37: 1
A38: 2 | B38: 15 | C38: =COUNTIF(入力シート!$L$2:$L$1000,"2-15") -> 0 | D38: 1 | E38: 1 | G38: 16 | H38: 14 | I38: =COUNTIF(入力シート!$L$2:$L$1000,"16-14") -> 0 | J38: =RANK(I38,$C$304:$C$323) -> 1 | K38: 1
A39: 2 | B39: 16 | C39: =COUNTIF(入力シート!$L$2:$L$1000,"2-16") -> 0 | D39: 1 | E39: 1 | G39: 18 | H39: 15 | I39: =COUNTIF(入力シート!$L$2:$L$1000,"18-15") -> 0 | J39: =RANK(I39,$C$344:$C$363) -> 1 | K39: 1
A40: 2 | B40: 17 | C40: =COUNTIF(入力シート!$L$2:$L$1000,"2-17") -> 0 | D40: 1 | E40: 1 | G40: 18 | H40: 17 | I40: =COUNTIF(入力シート!$L$2:$L$1000,"18-17") -> 0 | J40: =RANK(I40,$C$344:$C$363) -> 1 | K40: 1
A41: 2 | B41: 18 | C41: =COUNTIF(入力シート!$L$2:$L$1000,"2-18") -> 0 | D41: 1 | E41: 1 | G41: 10 | H41: 17 | I41: =COUNTIF(入力シート!$L$2:$L$1000,"10-17") -> 0 | J41: =RANK(I41,$C$184:$C$203) -> 1 | K41: 1
A42: 2 | B42: 19 | C42: =COUNTIF(入力シート!$L$2:$L$1000,"2-19") -> 0 | D42: 1 | E42: 1 | G42: 12 | H42: 12 | I42: =COUNTIF(入力シート!$L$2:$L$1000,"12-12") -> 0 | J42: =RANK(I42,$C$224:$C$243) -> 1 | K42: 1
A43: 2 | B43: 20 | C43: =COUNTIF(入力シート!$L$2:$L$1000,"2-20") -> 0 | D43: 1 | E43: 1 | G43: 13 | H43: 14 | I43: =COUNTIF(入力シート!$L$2:$L$1000,"13-14") -> 0 | J43: =RANK(I43,$C$244:$C$263) -> 1 | K43: 1
A44: 3 | B44: 1 | C44: =COUNTIF(入力シート!$L$2:$L$1000,"3-1") -> 0 | D44: =RANK(C44,$C$44:$C$63) -> 1 | E44: 1 | G44: 14 | H44: 13 | I44: =COUNTIF(入力シート!$L$2:$L$1000,"14-13") -> 0 | J44: =RANK(I44,$C$264:$C$283) -> 1 | K44: 1
A45: 3 | B45: 2 | C45: =COUNTIF(入力シート!$L$2:$L$1000,"3-2") -> 0 | D45: =RANK(C45,$C$44:$C$63) -> 1 | E45: 1 | G45: 15 | H45: 16 | I45: =COUNTIF(入力シート!$L$2:$L$1000,"15-16") -> 0 | J45: =RANK(I45,$C$284:$C$303) -> 1 | K45: 1
A46: 3 | B46: 3 | C46: =COUNTIF(入力シート!$L$2:$L$1000,"3-3") -> 0 | D46: 1 | E46: 1 | G46: 17 | H46: 10 | I46: =COUNTIF(入力シート!$L$2:$L$1000,"17-10") -> 0 | J46: =RANK(I46,$C$324:$C$343) -> 1 | K46: 1
A47: 3 | B47: 4 | C47: =COUNTIF(入力シート!$L$2:$L$1000,"3-4") -> 0 | D47: 1 | E47: 1 | G47: 17 | H47: 18 | I47: =COUNTIF(入力シート!$L$2:$L$1000,"17-18") -> 0 | J47: =RANK(I47,$C$324:$C$343) -> 1 | K47: 1
A48: 3 | B48: 5 | C48: =COUNTIF(入力シート!$L$2:$L$1000,"3-5") -> 0 | D48: 1 | E48: 1 | G48: 18 | H48: 19 | I48: =COUNTIF(入力シート!$L$2:$L$1000,"18-19") -> 0 | J48: =RANK(I48,$C$344:$C$363) -> 1 | K48: 1
A49: 3 | B49: 6 | C49: =COUNTIF(入力シート!$L$2:$L$1000,"3-6") -> 0 | D49: 1 | E49: 1 | G49: 12 | H49: 17 | I49: =COUNTIF(入力シート!$L$2:$L$1000,"12-17") -> 0 | J49: =RANK(I49,$C$224:$C$243) -> 1 | K49: 1
A50: 3 | B50: 7 | C50: =COUNTIF(入力シート!$L$2:$L$1000,"3-7") -> 0 | D50: 1 | E50: 1 | G50: 13 | H50: 13 | I50: =COUNTIF(入力シート!$L$2:$L$1000,"13-13") -> 0 | J50: =RANK(I50,$C$244:$C$263) -> 1 | K50: 1
A51: 3 | B51: 8 | C51: =COUNTIF(入力シート!$L$2:$L$1000,"3-8") -> 0 | D51: 1 | E51: 1 | G51: 13 | H51: 16 | I51: =COUNTIF(入力シート!$L$2:$L$1000,"13-16") -> 0 | J51: =RANK(I51,$C$244:$C$263) -> 1 | K51: 1
A52: 3 | B52: 9 | C52: =COUNTIF(入力シート!$L$2:$L$1000,"3-9") -> 0 | D52: 1 | E52: 1 | G52: 14 | H52: 16 | I52: =COUNTIF(入力シート!$L$2:$L$1000,"14-16") -> 0 | J52: =RANK(I52,$C$264:$C$283) -> 1 | K52: 1
A53: 3 | B53: 10 | C53: =COUNTIF(入力シート!$L$2:$L$1000,"3-10") -> 0 | D53: 1 | E53: 1 | G53: 16 | H53: 19 | I53: =COUNTIF(入力シート!$L$2:$L$1000,"16-19") -> 0 | J53: =RANK(I53,$C$304:$C$323) -> 1 | K53: 1
A54: 3 | B54: 11 | C54: =COUNTIF(入力シート!$L$2:$L$1000,"3-11") -> 0 | D54: 1 | E54: 1 | G54: 17 | H54: 12 | I54: =COUNTIF(入力シート!$L$2:$L$1000,"17-12") -> 0 | J54: =RANK(I54,$C$324:$C$343) -> 1 | K54: 1
A55: 3 | B55: 12 | C55: =COUNTIF(入力シート!$L$2:$L$1000,"3-12") -> 0 | D55: 1 | E55: 1 | G55: 19 | H55: 16 | I55: =COUNTIF(入力シート!$L$2:$L$1000,"19-16") -> 0 | J55: =RANK(I55,$C$364:$C$383) -> 1 | K55: 1
A56: 3 | B56: 13 | C56: =COUNTIF(入力シート!$L$2:$L$1000,"3-13") -> 0 | D56: 1 | E56: 1 | G56: 13 | H56: 15 | I56: =COUNTIF(入力シート!$L$2:$L$1000,"13-15") -> 0 | J56: =RANK(I56,$C$244:$C$263) -> 1 | K56: 1
A57: 3 | B57: 14 | C57: =COUNTIF(入力シート!$L$2:$L$1000,"3-14") -> 0 | D57: 1 | E57: 1 | G57: 13 | H57: 19 | I57: =COUNTIF(入力シート!$L$2:$L$1000,"13-19") -> 0 | J57: =RANK(I57,$C$244:$C$263) -> 1 | K57: 1
A58: 3 | B58: 15 | C58: =COUNTIF(入力シート!$L$2:$L$1000,"3-15") -> 0 | D58: 1 | E58: 1 | G58: 16 | H58: 15 | I58: =COUNTIF(入力シート!$L$2:$L$1000,"16-15") -> 0 | J58: =RANK(I58,$C$304:$C$323) -> 1 | K58: 1
A59: 3 | B59: 16 | C59: =COUNTIF(入力シート!$L$2:$L$1000,"3-16") -> 0 | D59: 1 | E59: 1 | G59: 19 | H59: 13 | I59: =COUNTIF(入力シート!$L$2:$L$1000,"19-13") -> 0 | J59: =RANK(I59,$C$364:$C$383) -> 1 | K59: 1
A60: 3 | B60: 17 | C60: =COUNTIF(入力シート!$L$2:$L$1000,"3-17") -> 0 | D60: 1 | E60: 1 | G60: 8 | H60: 10 | I60: =COUNTIF(入力シート!$L$2:$L$1000,"8-10") -> 0 | J60: =RANK(I60,$C$144:$C$163) -> 1 | K60: 1
A61: 3 | B61: 18 | C61: =COUNTIF(入力シート!$L$2:$L$1000,"3-18") -> 0 | D61: 1 | E61: 1 | G61: 12 | H61: 15 | I61: =COUNTIF(入力シート!$L$2:$L$1000,"12-15") -> 0 | J61: =RANK(I61,$C$224:$C$243) -> 1 | K61: 1
A62: 3 | B62: 19 | C62: =COUNTIF(入力シート!$L$2:$L$1000,"3-19") -> 0 | D62: 1 | E62: 1 | G62: 12 | H62: 19 | I62: =COUNTIF(入力シート!$L$2:$L$1000,"12-19") -> 0 | J62: =RANK(I62,$C$224:$C$243) -> 1 | K62: 1
A63: 3 | B63: 20 | C63: =COUNTIF(入力シート!$L$2:$L$1000,"3-20") -> 0 | D63: 1 | E63: 1 | G63: 13 | H63: 18 | I63: =COUNTIF(入力シート!$L$2:$L$1000,"13-18") -> 0 | J63: =RANK(I63,$C$244:$C$263) -> 1 | K63: 1
A64: 4 | B64: 1 | C64: =COUNTIF(入力シート!$L$2:$L$1000,"4-1") -> 0 | D64: =RANK(C64,$C$64:$C$83) -> 1 | E64: 1 | G64: 15 | H64: 12 | I64: =COUNTIF(入力シート!$L$2:$L$1000,"15-12") -> 0 | J64: =RANK(I64,$C$284:$C$303) -> 1 | K64: 1
A65: 4 | B65: 2 | C65: =COUNTIF(入力シート!$L$2:$L$1000,"4-2") -> 0 | D65: =RANK(C65,$C$64:$C$83) -> 1 | E65: 1 | G65: 16 | H65: 13 | I65: =COUNTIF(入力シート!$L$2:$L$1000,"16-13") -> 0 | J65: =RANK(I65,$C$304:$C$323) -> 1 | K65: 1
A66: 4 | B66: 3 | C66: =COUNTIF(入力シート!$L$2:$L$1000,"4-3") -> 0 | D66: 1 | E66: 1 | G66: 19 | H66: 12 | I66: =COUNTIF(入力シート!$L$2:$L$1000,"19-12") -> 0 | J66: =RANK(I66,$C$364:$C$383) -> 1 | K66: 1
A67: 4 | B67: 4 | C67: =COUNTIF(入力シート!$L$2:$L$1000,"4-4") -> 0 | D67: 1 | E67: 1 | G67: 1 | H67: 16 | I67: =COUNTIF(入力シート!$L$2:$L$1000,"1-16") -> 0 | J67: =RANK(I67,$C$4:$C$23) -> 1 | K67: 1
A68: 4 | B68: 5 | C68: =COUNTIF(入力シート!$L$2:$L$1000,"4-5") -> 0 | D68: 1 | E68: 1 | G68: 1 | H68: 18 | I68: =COUNTIF(入力シート!$L$2:$L$1000,"1-18") -> 0 | J68: =RANK(I68,$C$4:$C$23) -> 1 | K68: =RANK(I68,$C$4:$C$403) -> 1
A69: 4 | B69: 6 | C69: =COUNTIF(入力シート!$L$2:$L$1000,"4-6") -> 0 | D69: 1 | E69: =RANK(C69,$C$4:$C$403) -> 1 | G69: 2 | H69: 15 | I69: =COUNTIF(入力シート!$L$2:$L$1000,"2-15") -> 0 | J69: =RANK(I69,$C$24:$C$43) -> 1 | K69: 1
A70: 4 | B70: 7 | C70: =COUNTIF(入力シート!$L$2:$L$1000,"4-7") -> 0 | D70: 1 | E70: 1 | G70: 3 | H70: 15 | I70: =COUNTIF(入力シート!$L$2:$L$1000,"3-15") -> 0 | J70: =RANK(I70,$C$44:$C$63) -> 1 | K70: 1
A71: 4 | B71: 8 | C71: =COUNTIF(入力シート!$L$2:$L$1000,"4-8") -> 0 | D71: 1 | E71: 1 | G71: 3 | H71: 18 | I71: =COUNTIF(入力シート!$L$2:$L$1000,"3-18") -> 0 | J71: =RANK(I71,$C$44:$C$63) -> 1 | K71: 1
A72: 4 | B72: 9 | C72: =COUNTIF(入力シート!$L$2:$L$1000,"4-9") -> 0 | D72: 1 | E72: 1 | G72: 4 | H72: 10 | I72: =COUNTIF(入力シート!$L$2:$L$1000,"4-10") -> 0 | J72: =RANK(I72,$C$64:$C$83) -> 1 | K72: 1
A73: 4 | B73: 10 | C73: =COUNTIF(入力シート!$L$2:$L$1000,"4-10") -> 0 | D73: 1 | E73: 1 | G73: 5 | H73: 4 | I73: =COUNTIF(入力シート!$L$2:$L$1000,"5-4") -> 0 | J73: =RANK(I73,$C$84:$C$103) -> 1 | K73: 1
A74: 4 | B74: 11 | C74: =COUNTIF(入力シート!$L$2:$L$1000,"4-11") -> 0 | D74: 1 | E74: 1 | G74: 5 | H74: 6 | I74: =COUNTIF(入力シート!$L$2:$L$1000,"5-6") -> 0 | J74: =RANK(I74,$C$84:$C$103) -> 1 | K74: 1
A75: 4 | B75: 12 | C75: =COUNTIF(入力シート!$L$2:$L$1000,"4-12") -> 0 | D75: 1 | E75: 1 | G75: 5 | H75: 12 | I75: =COUNTIF(入力シート!$L$2:$L$1000,"5-12") -> 0 | J75: =RANK(I75,$C$84:$C$103) -> 1 | K75: 1
A76: 4 | B76: 13 | C76: =COUNTIF(入力シート!$L$2:$L$1000,"4-13") -> 0 | D76: 1 | E76: 1 | G76: 5 | H76: 16 | I76: =COUNTIF(入力シート!$L$2:$L$1000,"5-16") -> 0 | J76: =RANK(I76,$C$84:$C$103) -> 1 | K76: 1
A77: 4 | B77: 14 | C77: =COUNTIF(入力シート!$L$2:$L$1000,"4-14") -> 0 | D77: 1 | E77: 1 | G77: 5 | H77: 18 | I77: =COUNTIF(入力シート!$L$2:$L$1000,"5-18") -> 0 | J77: =RANK(I77,$C$84:$C$103) -> 1 | K77: 1
A78: 4 | B78: 15 | C78: =COUNTIF(入力シート!$L$2:$L$1000,"4-15") -> 0 | D78: 1 | E78: 1 | G78: 6 | H78: 15 | I78: =COUNTIF(入力シート!$L$2:$L$1000,"6-15") -> 0 | J78: =RANK(I78,$C$104:$C$123) -> 1 | K78: 1
A79: 4 | B79: 16 | C79: =COUNTIF(入力シート!$L$2:$L$1000,"4-16") -> 0 | D79: 1 | E79: 1 | G79: 8 | H79: 8 | I79: =COUNTIF(入力シート!$L$2:$L$1000,"8-8") -> 0 | J79: =RANK(I79,$C$144:$C$163) -> 1 | K79: 1
A80: 4 | B80: 17 | C80: =COUNTIF(入力シート!$L$2:$L$1000,"4-17") -> 0 | D80: 1 | E80: 1 | G80: 8 | H80: 18 | I80: =COUNTIF(入力シート!$L$2:$L$1000,"8-18") -> 0 | J80: =RANK(I80,$C$144:$C$163) -> 1 | K80: 1
A81: 4 | B81: 18 | C81: =COUNTIF(入力シート!$L$2:$L$1000,"4-18") -> 0 | D81: 1 | E81: 1 | G81: 10 | H81: 2 | I81: =COUNTIF(入力シート!$L$2:$L$1000,"10-2") -> 0 | J81: =RANK(I81,$C$184:$C$203) -> 1 | K81: 1
A82: 4 | B82: 19 | C82: =COUNTIF(入力シート!$L$2:$L$1000,"4-19") -> 0 | D82: 1 | E82: 1 | G82: 10 | H82: 5 | I82: =COUNTIF(入力シート!$L$2:$L$1000,"10-5") -> 0 | J82: =RANK(I82,$C$184:$C$203) -> 1 | K82: 1
A83: 4 | B83: 20 | C83: =COUNTIF(入力シート!$L$2:$L$1000,"4-20") -> 0 | D83: 1 | E83: 1 | G83: 10 | H83: 8 | I83: =COUNTIF(入力シート!$L$2:$L$1000,"10-8") -> 0 | J83: =RANK(I83,$C$184:$C$203) -> 1 | K83: 1
A84: 5 | B84: 1 | C84: =COUNTIF(入力シート!$L$2:$L$1000,"5-1") -> 0 | D84: =RANK(C84,$C$84:$C$103) -> 1 | E84: 1 | G84: 10 | H84: 12 | I84: =COUNTIF(入力シート!$L$2:$L$1000,"10-12") -> 0 | J84: =RANK(I84,$C$184:$C$203) -> 1 | K84: 1
A85: 5 | B85: 2 | C85: =COUNTIF(入力シート!$L$2:$L$1000,"5-2") -> 0 | D85: =RANK(C85,$C$84:$C$103) -> 1 | E85: 1 | G85: 11 | H85: 12 | I85: =COUNTIF(入力シート!$L$2:$L$1000,"11-12") -> 0 | J85: =RANK(I85,$C$204:$C$223) -> 1 | K85: 1
A86: 5 | B86: 3 | C86: =COUNTIF(入力シート!$L$2:$L$1000,"5-3") -> 0 | D86: 1 | E86: 1 | G86: 11 | H86: 14 | I86: =COUNTIF(入力シート!$L$2:$L$1000,"11-14") -> 0 | J86: =RANK(I86,$C$204:$C$223) -> 1 | K86: 1
A87: 5 | B87: 4 | C87: =COUNTIF(入力シート!$L$2:$L$1000,"5-4") -> 0 | D87: 1 | E87: 1 | G87: 11 | H87: 16 | I87: =COUNTIF(入力シート!$L$2:$L$1000,"11-16") -> 0 | J87: =RANK(I87,$C$204:$C$223) -> 1 | K87: 1
A88: 5 | B88: 5 | C88: =COUNTIF(入力シート!$L$2:$L$1000,"5-5") -> 0 | D88: 1 | E88: 1 | G88: 11 | H88: 19 | I88: =COUNTIF(入力シート!$L$2:$L$1000,"11-19") -> 0 | J88: =RANK(I88,$C$204:$C$223) -> 1 | K88: 1
A89: 5 | B89: 6 | C89: =COUNTIF(入力シート!$L$2:$L$1000,"5-6") -> 0 | D89: 1 | E89: 1 | G89: 12 | H89: 13 | I89: =COUNTIF(入力シート!$L$2:$L$1000,"12-13") -> 0 | J89: =RANK(I89,$C$224:$C$243) -> 1 | K89: 1
A90: 5 | B90: 7 | C90: =COUNTIF(入力シート!$L$2:$L$1000,"5-7") -> 0 | D90: 1 | E90: 1 | G90: 13 | H90: 12 | I90: =COUNTIF(入力シート!$L$2:$L$1000,"13-12") -> 0 | J90: =RANK(I90,$C$244:$C$263) -> 1 | K90: 1
A91: 5 | B91: 8 | C91: =COUNTIF(入力シート!$L$2:$L$1000,"5-8") -> 0 | D91: 1 | E91: 1 | G91: 14 | H91: 11 | I91: =COUNTIF(入力シート!$L$2:$L$1000,"14-11") -> 0 | J91: =RANK(I91,$C$264:$C$283) -> 1 | K91: 1
A92: 5 | B92: 9 | C92: =COUNTIF(入力シート!$L$2:$L$1000,"5-9") -> 0 | D92: 1 | E92: 1 | G92: 15 | H92: 2 | I92: =COUNTIF(入力シート!$L$2:$L$1000,"15-2") -> 0 | J92: =RANK(I92,$C$284:$C$303) -> 1 | K92: 1
A93: 5 | B93: 10 | C93: =COUNTIF(入力シート!$L$2:$L$1000,"5-10") -> 0 | D93: 1 | E93: 1 | G93: 15 | H93: 3 | I93: =COUNTIF(入力シート!$L$2:$L$1000,"15-3") -> 0 | J93: =RANK(I93,$C$284:$C$303) -> 1 | K93: 1
A94: 5 | B94: 11 | C94: =COUNTIF(入力シート!$L$2:$L$1000,"5-11") -> 0 | D94: 1 | E94: 1 | G94: 15 | H94: 6 | I94: =COUNTIF(入力シート!$L$2:$L$1000,"15-6") -> 0 | J94: =RANK(I94,$C$284:$C$303) -> 1 | K94: 1
A95: 5 | B95: 12 | C95: =COUNTIF(入力シート!$L$2:$L$1000,"5-12") -> 0 | D95: 1 | E95: 1 | G95: 15 | H95: 13 | I95: =COUNTIF(入力シート!$L$2:$L$1000,"15-13") -> 0 | J95: =RANK(I95,$C$284:$C$303) -> 1 | K95: 1
A96: 5 | B96: 13 | C96: =COUNTIF(入力シート!$L$2:$L$1000,"5-13") -> 0 | D96: 1 | E96: 1 | G96: 16 | H96: 1 | I96: =COUNTIF(入力シート!$L$2:$L$1000,"16-1") -> 0 | J96: =RANK(I96,$C$304:$C$323) -> 1 | K96: 1
A97: 5 | B97: 14 | C97: =COUNTIF(入力シート!$L$2:$L$1000,"5-14") -> 0 | D97: 1 | E97: 1 | G97: 16 | H97: 5 | I97: =COUNTIF(入力シート!$L$2:$L$1000,"16-5") -> 0 | J97: =RANK(I97,$C$304:$C$323) -> 1 | K97: 1
A98: 5 | B98: 15 | C98: =COUNTIF(入力シート!$L$2:$L$1000,"5-15") -> 0 | D98: 1 | E98: 1 | G98: 16 | H98: 11 | I98: =COUNTIF(入力シート!$L$2:$L$1000,"16-11") -> 0 | J98: =RANK(I98,$C$304:$C$323) -> 1 | K98: 1
A99: 5 | B99: 16 | C99: =COUNTIF(入力シート!$L$2:$L$1000,"5-16") -> 0 | D99: 1 | E99: 1 | G99: 17 | H99: 13 | I99: =COUNTIF(入力シート!$L$2:$L$1000,"17-13") -> 0 | J99: =RANK(I99,$C$324:$C$343) -> 1 | K99: 1
A100: 5 | B100: 17 | C100: =COUNTIF(入力シート!$L$2:$L$1000,"5-17") -> 0 | D100: 1 | E100: 1 | G100: 17 | H100: 14 | I100: =COUNTIF(入力シート!$L$2:$L$1000,"17-14") -> 0 | J100: =RANK(I100,$C$324:$C$343) -> 1 | K100: 1
A101: 5 | B101: 18 | C101: =COUNTIF(入力シート!$L$2:$L$1000,"5-18") -> 0 | D101: 1 | E101: 1 | G101: 17 | H101: 16 | I101: =COUNTIF(入力シート!$L$2:$L$1000,"17-16") -> 0 | J101: =RANK(I101,$C$324:$C$343) -> 1 | K101: 1
A102: 5 | B102: 19 | C102: =COUNTIF(入力シート!$L$2:$L$1000,"5-19") -> 0 | D102: 1 | E102: 1 | G102: 17 | H102: 17 | I102: =COUNTIF(入力シート!$L$2:$L$1000,"17-17") -> 0 | J102: =RANK(I102,$C$324:$C$343) -> 1 | K102: 1
A103: 5 | B103: 20 | C103: =COUNTIF(入力シート!$L$2:$L$1000,"5-20") -> 0 | D103: 1 | E103: 1 | G103: 18 | H103: 1 | I103: =COUNTIF(入力シート!$L$2:$L$1000,"18-1") -> 0 | J103: =RANK(I103,$C$344:$C$363) -> 1 | K103: 1
A104: 6 | B104: 1 | C104: =COUNTIF(入力シート!$L$2:$L$1000,"6-1") -> 0 | D104: =RANK(C104,$C$104:$C$123) -> 1 | E104: 1 | G104: 18 | H104: 3 | I104: =COUNTIF(入力シート!$L$2:$L$1000,"18-3") -> 0 | J104: =RANK(I104,$C$344:$C$363) -> 1 | K104: 1
A105: 6 | B105: 2 | C105: =COUNTIF(入力シート!$L$2:$L$1000,"6-2") -> 0 | D105: =RANK(C105,$C$104:$C$123) -> 1 | E105: 1 | G105: 18 | H105: 5 | I105: =COUNTIF(入力シート!$L$2:$L$1000,"18-5") -> 0 | J105: =RANK(I105,$C$344:$C$363) -> 1 | K105: 1
A106: 6 | B106: 3 | C106: =COUNTIF(入力シート!$L$2:$L$1000,"6-3") -> 0 | D106: 1 | E106: 1 | G106: 18 | H106: 8 | I106: =COUNTIF(入力シート!$L$2:$L$1000,"18-8") -> 0 | J106: =RANK(I106,$C$344:$C$363) -> 1 | K106: 1
A107: 6 | B107: 4 | C107: =COUNTIF(入力シート!$L$2:$L$1000,"6-4") -> 0 | D107: 1 | E107: 1 | G107: 19 | H107: 11 | I107: =COUNTIF(入力シート!$L$2:$L$1000,"19-11") -> 0 | J107: =RANK(I107,$C$364:$C$383) -> 1 | K107: 1
A108: 6 | B108: 5 | C108: =COUNTIF(入力シート!$L$2:$L$1000,"6-5") -> 0 | D108: 1 | E108: 1 | G108: 19 | H108: 14 | I108: =COUNTIF(入力シート!$L$2:$L$1000,"19-14") -> 0 | J108: =RANK(I108,$C$364:$C$383) -> 1 | K108: 1
A109: 6 | B109: 6 | C109: =COUNTIF(入力シート!$L$2:$L$1000,"6-6") -> 0 | D109: 1 | E109: 1 | G109: 19 | H109: 17 | I109: =COUNTIF(入力シート!$L$2:$L$1000,"19-17") -> 0 | J109: =RANK(I109,$C$364:$C$383) -> 1 | K109: 1
A110: 6 | B110: 7 | C110: =COUNTIF(入力シート!$L$2:$L$1000,"6-7") -> 0 | D110: 1 | E110: 1 | G110: 19 | H110: 18 | I110: =COUNTIF(入力シート!$L$2:$L$1000,"19-18") -> 0 | J110: =RANK(I110,$C$364:$C$383) -> 1 | K110: 1
A111: 6 | B111: 8 | C111: =COUNTIF(入力シート!$L$2:$L$1000,"6-8") -> 0 | D111: 1 | E111: 1 | G111: 1 | H111: 1 | I111: =COUNTIF(入力シート!$L$2:$L$1000,"1-1") -> 0 | J111: =RANK(I111,$C$4:$C$23) -> 1 | K111: 1
A112: 6 | B112: 9 | C112: =COUNTIF(入力シート!$L$2:$L$1000,"6-9") -> 0 | D112: 1 | E112: 1 | G112: 1 | H112: 2 | I112: =COUNTIF(入力シート!$L$2:$L$1000,"1-2") -> 0 | J112: 1 | K112: 1
A113: 6 | B113: 10 | C113: =COUNTIF(入力シート!$L$2:$L$1000,"6-10") -> 0 | D113: 1 | E113: 1 | G113: 1 | H113: 3 | I113: =COUNTIF(入力シート!$L$2:$L$1000,"1-3") -> 0 | J113: 1 | K113: 1
A114: 6 | B114: 11 | C114: =COUNTIF(入力シート!$L$2:$L$1000,"6-11") -> 0 | D114: 1 | E114: 1 | G114: 1 | H114: 4 | I114: =COUNTIF(入力シート!$L$2:$L$1000,"1-4") -> 0 | J114: 1 | K114: 1
A115: 6 | B115: 12 | C115: =COUNTIF(入力シート!$L$2:$L$1000,"6-12") -> 0 | D115: 1 | E115: 1 | G115: 1 | H115: 5 | I115: =COUNTIF(入力シート!$L$2:$L$1000,"1-5") -> 0 | J115: 1 | K115: 1
A116: 6 | B116: 13 | C116: =COUNTIF(入力シート!$L$2:$L$1000,"6-13") -> 0 | D116: 1 | E116: 1 | G116: 1 | H116: 6 | I116: =COUNTIF(入力シート!$L$2:$L$1000,"1-6") -> 0 | J116: 1 | K116: 1
A117: 6 | B117: 14 | C117: =COUNTIF(入力シート!$L$2:$L$1000,"6-14") -> 0 | D117: 1 | E117: 1 | G117: 1 | H117: 7 | I117: =COUNTIF(入力シート!$L$2:$L$1000,"1-7") -> 0 | J117: 1 | K117: 1
A118: 6 | B118: 15 | C118: =COUNTIF(入力シート!$L$2:$L$1000,"6-15") -> 0 | D118: 1 | E118: 1 | G118: 1 | H118: 8 | I118: =COUNTIF(入力シート!$L$2:$L$1000,"1-8") -> 0 | J118: 1 | K118: 1
A119: 6 | B119: 16 | C119: =COUNTIF(入力シート!$L$2:$L$1000,"6-16") -> 0 | D119: 1 | E119: 1 | G119: 1 | H119: 9 | I119: =COUNTIF(入力シート!$L$2:$L$1000,"1-9") -> 0 | J119: 1 | K119: 1
A120: 6 | B120: 17 | C120: =COUNTIF(入力シート!$L$2:$L$1000,"6-17") -> 0 | D120: 1 | E120: 1 | G120: 1 | H120: 10 | I120: =COUNTIF(入力シート!$L$2:$L$1000,"1-10") -> 0 | J120: 1 | K120: 1
A121: 6 | B121: 18 | C121: =COUNTIF(入力シート!$L$2:$L$1000,"6-18") -> 0 | D121: 1 | E121: 1 | G121: 1 | H121: 11 | I121: =COUNTIF(入力シート!$L$2:$L$1000,"1-11") -> 0 | J121: 1 | K121: 1
A122: 6 | B122: 19 | C122: =COUNTIF(入力シート!$L$2:$L$1000,"6-19") -> 0 | D122: 1 | E122: 1 | G122: 1 | H122: 12 | I122: =COUNTIF(入力シート!$L$2:$L$1000,"1-12") -> 0 | J122: 1 | K122: 1
A123: 6 | B123: 20 | C123: =COUNTIF(入力シート!$L$2:$L$1000,"6-20") -> 0 | D123: 1 | E123: 1 | G123: 1 | H123: 13 | I123: =COUNTIF(入力シート!$L$2:$L$1000,"1-13") -> 0 | J123: 1 | K123: 1
A124: 7 | B124: 1 | C124: =COUNTIF(入力シート!$L$2:$L$1000,"7-1") -> 0 | D124: =RANK(C124,$C$124:$C$143) -> 1 | E124: 1 | G124: 1 | H124: 14 | I124: =COUNTIF(入力シート!$L$2:$L$1000,"1-14") -> 0 | J124: 1 | K124: 1
A125: 7 | B125: 2 | C125: =COUNTIF(入力シート!$L$2:$L$1000,"7-2") -> 0 | D125: =RANK(C125,$C$124:$C$143) -> 1 | E125: 1 | G125: 1 | H125: 15 | I125: =COUNTIF(入力シート!$L$2:$L$1000,"1-15") -> 0 | J125: 1 | K125: 1
A126: 7 | B126: 3 | C126: =COUNTIF(入力シート!$L$2:$L$1000,"7-3") -> 0 | D126: 1 | E126: 1 | G126: 1 | H126: 17 | I126: =COUNTIF(入力シート!$L$2:$L$1000,"1-17") -> 0 | J126: 1 | K126: 1
A127: 7 | B127: 4 | C127: =COUNTIF(入力シート!$L$2:$L$1000,"7-4") -> 0 | D127: 1 | E127: 1 | G127: 1 | H127: 19 | I127: =COUNTIF(入力シート!$L$2:$L$1000,"1-19") -> 0 | J127: 1 | K127: 1
A128: 7 | B128: 5 | C128: =COUNTIF(入力シート!$L$2:$L$1000,"7-5") -> 0 | D128: 1 | E128: 1 | G128: 1 | H128: 20 | I128: =COUNTIF(入力シート!$L$2:$L$1000,"1-20") -> 0 | J128: 1 | K128: 1
A129: 7 | B129: 6 | C129: =COUNTIF(入力シート!$L$2:$L$1000,"7-6") -> 0 | D129: 1 | E129: 1 | G129: 2 | H129: 1 | I129: =COUNTIF(入力シート!$L$2:$L$1000,"2-1") -> 0 | J129: =RANK(I129,$C$24:$C$43) -> 1 | K129: 1
A130: 7 | B130: 7 | C130: =COUNTIF(入力シート!$L$2:$L$1000,"7-7") -> 0 | D130: 1 | E130: 1 | G130: 2 | H130: 2 | I130: =COUNTIF(入力シート!$L$2:$L$1000,"2-2") -> 0 | J130: 1 | K130: 1
A131: 7 | B131: 8 | C131: =COUNTIF(入力シート!$L$2:$L$1000,"7-8") -> 0 | D131: 1 | E131: 1 | G131: 2 | H131: 3 | I131: =COUNTIF(入力シート!$L$2:$L$1000,"2-3") -> 0 | J131: 1 | K131: 1
A132: 7 | B132: 9 | C132: =COUNTIF(入力シート!$L$2:$L$1000,"7-9") -> 0 | D132: 1 | E132: 1 | G132: 2 | H132: 4 | I132: =COUNTIF(入力シート!$L$2:$L$1000,"2-4") -> 0 | J132: 1 | K132: =RANK(I132,$C$4:$C$403) -> 1
A133: 7 | B133: 10 | C133: =COUNTIF(入力シート!$L$2:$L$1000,"7-10") -> 0 | D133: 1 | E133: =RANK(C133,$C$4:$C$403) -> 1 | G133: 2 | H133: 5 | I133: =COUNTIF(入力シート!$L$2:$L$1000,"2-5") -> 0 | J133: 1 | K133: 1
A134: 7 | B134: 11 | C134: =COUNTIF(入力シート!$L$2:$L$1000,"7-11") -> 0 | D134: 1 | E134: 1 | G134: 2 | H134: 6 | I134: =COUNTIF(入力シート!$L$2:$L$1000,"2-6") -> 0 | J134: 1 | K134: 1
A135: 7 | B135: 12 | C135: =COUNTIF(入力シート!$L$2:$L$1000,"7-12") -> 0 | D135: 1 | E135: 1 | G135: 2 | H135: 7 | I135: =COUNTIF(入力シート!$L$2:$L$1000,"2-7") -> 0 | J135: 1 | K135: 1
A136: 7 | B136: 13 | C136: =COUNTIF(入力シート!$L$2:$L$1000,"7-13") -> 0 | D136: 1 | E136: 1 | G136: 2 | H136: 8 | I136: =COUNTIF(入力シート!$L$2:$L$1000,"2-8") -> 0 | J136: 1 | K136: 1
A137: 7 | B137: 14 | C137: =COUNTIF(入力シート!$L$2:$L$1000,"7-14") -> 0 | D137: 1 | E137: 1 | G137: 2 | H137: 9 | I137: =COUNTIF(入力シート!$L$2:$L$1000,"2-9") -> 0 | J137: 1 | K137: 1
A138: 7 | B138: 15 | C138: =COUNTIF(入力シート!$L$2:$L$1000,"7-15") -> 0 | D138: 1 | E138: 1 | G138: 2 | H138: 10 | I138: =COUNTIF(入力シート!$L$2:$L$1000,"2-10") -> 0 | J138: 1 | K138: 1
A139: 7 | B139: 16 | C139: =COUNTIF(入力シート!$L$2:$L$1000,"7-16") -> 0 | D139: 1 | E139: 1 | G139: 2 | H139: 11 | I139: =COUNTIF(入力シート!$L$2:$L$1000,"2-11") -> 0 | J139: 1 | K139: 1
A140: 7 | B140: 17 | C140: =COUNTIF(入力シート!$L$2:$L$1000,"7-17") -> 0 | D140: 1 | E140: 1 | G140: 2 | H140: 12 | I140: =COUNTIF(入力シート!$L$2:$L$1000,"2-12") -> 0 | J140: 1 | K140: 1
A141: 7 | B141: 18 | C141: =COUNTIF(入力シート!$L$2:$L$1000,"7-18") -> 0 | D141: 1 | E141: 1 | G141: 2 | H141: 13 | I141: =COUNTIF(入力シート!$L$2:$L$1000,"2-13") -> 0 | J141: 1 | K141: 1
A142: 7 | B142: 19 | C142: =COUNTIF(入力シート!$L$2:$L$1000,"7-19") -> 0 | D142: 1 | E142: 1 | G142: 2 | H142: 14 | I142: =COUNTIF(入力シート!$L$2:$L$1000,"2-14") -> 0 | J142: 1 | K142: 1
A143: 7 | B143: 20 | C143: =COUNTIF(入力シート!$L$2:$L$1000,"7-20") -> 0 | D143: 1 | E143: 1 | G143: 2 | H143: 16 | I143: =COUNTIF(入力シート!$L$2:$L$1000,"2-16") -> 0 | J143: 1 | K143: 1
A144: 8 | B144: 1 | C144: =COUNTIF(入力シート!$L$2:$L$1000,"8-1") -> 0 | D144: =RANK(C144,$C$144:$C$163) -> 1 | E144: 1 | G144: 2 | H144: 17 | I144: =COUNTIF(入力シート!$L$2:$L$1000,"2-17") -> 0 | J144: 1 | K144: 1
A145: 8 | B145: 2 | C145: =COUNTIF(入力シート!$L$2:$L$1000,"8-2") -> 0 | D145: =RANK(C145,$C$144:$C$163) -> 1 | E145: 1 | G145: 2 | H145: 18 | I145: =COUNTIF(入力シート!$L$2:$L$1000,"2-18") -> 0 | J145: 1 | K145: 1
A146: 8 | B146: 3 | C146: =COUNTIF(入力シート!$L$2:$L$1000,"8-3") -> 0 | D146: 1 | E146: 1 | G146: 2 | H146: 19 | I146: =COUNTIF(入力シート!$L$2:$L$1000,"2-19") -> 0 | J146: 1 | K146: 1
A147: 8 | B147: 4 | C147: =COUNTIF(入力シート!$L$2:$L$1000,"8-4") -> 0 | D147: 1 | E147: 1 | G147: 2 | H147: 20 | I147: =COUNTIF(入力シート!$L$2:$L$1000,"2-20") -> 0 | J147: 1 | K147: 1
A148: 8 | B148: 5 | C148: =COUNTIF(入力シート!$L$2:$L$1000,"8-5") -> 0 | D148: 1 | E148: 1 | G148: 3 | H148: 1 | I148: =COUNTIF(入力シート!$L$2:$L$1000,"3-1") -> 0 | J148: =RANK(I148,$C$44:$C$63) -> 1 | K148: 1
A149: 8 | B149: 6 | C149: =COUNTIF(入力シート!$L$2:$L$1000,"8-6") -> 0 | D149: 1 | E149: 1 | G149: 3 | H149: 2 | I149: =COUNTIF(入力シート!$L$2:$L$1000,"3-2") -> 0 | J149: 1 | K149: 1
A150: 8 | B150: 7 | C150: =COUNTIF(入力シート!$L$2:$L$1000,"8-7") -> 0 | D150: 1 | E150: 1 | G150: 3 | H150: 3 | I150: =COUNTIF(入力シート!$L$2:$L$1000,"3-3") -> 0 | J150: 1 | K150: 1
A151: 8 | B151: 8 | C151: =COUNTIF(入力シート!$L$2:$L$1000,"8-8") -> 0 | D151: 1 | E151: 1 | G151: 3 | H151: 4 | I151: =COUNTIF(入力シート!$L$2:$L$1000,"3-4") -> 0 | J151: 1 | K151: 1
A152: 8 | B152: 9 | C152: =COUNTIF(入力シート!$L$2:$L$1000,"8-9") -> 0 | D152: 1 | E152: 1 | G152: 3 | H152: 5 | I152: =COUNTIF(入力シート!$L$2:$L$1000,"3-5") -> 0 | J152: 1 | K152: 1
A153: 8 | B153: 10 | C153: =COUNTIF(入力シート!$L$2:$L$1000,"8-10") -> 0 | D153: 1 | E153: 1 | G153: 3 | H153: 6 | I153: =COUNTIF(入力シート!$L$2:$L$1000,"3-6") -> 0 | J153: 1 | K153: 1
A154: 8 | B154: 11 | C154: =COUNTIF(入力シート!$L$2:$L$1000,"8-11") -> 0 | D154: 1 | E154: 1 | G154: 3 | H154: 7 | I154: =COUNTIF(入力シート!$L$2:$L$1000,"3-7") -> 0 | J154: 1 | K154: 1
A155: 8 | B155: 12 | C155: =COUNTIF(入力シート!$L$2:$L$1000,"8-12") -> 0 | D155: 1 | E155: 1 | G155: 3 | H155: 8 | I155: =COUNTIF(入力シート!$L$2:$L$1000,"3-8") -> 0 | J155: 1 | K155: 1
A156: 8 | B156: 13 | C156: =COUNTIF(入力シート!$L$2:$L$1000,"8-13") -> 0 | D156: 1 | E156: 1 | G156: 3 | H156: 9 | I156: =COUNTIF(入力シート!$L$2:$L$1000,"3-9") -> 0 | J156: 1 | K156: 1
A157: 8 | B157: 14 | C157: =COUNTIF(入力シート!$L$2:$L$1000,"8-14") -> 0 | D157: 1 | E157: 1 | G157: 3 | H157: 10 | I157: =COUNTIF(入力シート!$L$2:$L$1000,"3-10") -> 0 | J157: 1 | K157: 1
A158: 8 | B158: 15 | C158: =COUNTIF(入力シート!$L$2:$L$1000,"8-15") -> 0 | D158: 1 | E158: 1 | G158: 3 | H158: 11 | I158: =COUNTIF(入力シート!$L$2:$L$1000,"3-11") -> 0 | J158: 1 | K158: 1
A159: 8 | B159: 16 | C159: =COUNTIF(入力シート!$L$2:$L$1000,"8-16") -> 0 | D159: 1 | E159: 1 | G159: 3 | H159: 12 | I159: =COUNTIF(入力シート!$L$2:$L$1000,"3-12") -> 0 | J159: 1 | K159: 1
A160: 8 | B160: 17 | C160: =COUNTIF(入力シート!$L$2:$L$1000,"8-17") -> 0 | D160: 1 | E160: 1 | G160: 3 | H160: 13 | I160: =COUNTIF(入力シート!$L$2:$L$1000,"3-13") -> 0 | J160: 1 | K160: 1
A161: 8 | B161: 18 | C161: =COUNTIF(入力シート!$L$2:$L$1000,"8-18") -> 0 | D161: 1 | E161: 1 | G161: 3 | H161: 14 | I161: =COUNTIF(入力シート!$L$2:$L$1000,"3-14") -> 0 | J161: 1 | K161: 1
A162: 8 | B162: 19 | C162: =COUNTIF(入力シート!$L$2:$L$1000,"8-19") -> 0 | D162: 1 | E162: 1 | G162: 3 | H162: 16 | I162: =COUNTIF(入力シート!$L$2:$L$1000,"3-16") -> 0 | J162: 1 | K162: 1
A163: 8 | B163: 20 | C163: =COUNTIF(入力シート!$L$2:$L$1000,"8-20") -> 0 | D163: 1 | E163: 1 | G163: 3 | H163: 17 | I163: =COUNTIF(入力シート!$L$2:$L$1000,"3-17") -> 0 | J163: 1 | K163: 1
A164: 9 | B164: 1 | C164: =COUNTIF(入力シート!$L$2:$L$1000,"9-1") -> 0 | D164: =RANK(C164,$C$164:$C$183) -> 1 | E164: 1 | G164: 3 | H164: 19 | I164: =COUNTIF(入力シート!$L$2:$L$1000,"3-19") -> 0 | J164: 1 | K164: 1
A165: 9 | B165: 2 | C165: =COUNTIF(入力シート!$L$2:$L$1000,"9-2") -> 0 | D165: =RANK(C165,$C$164:$C$183) -> 1 | E165: 1 | G165: 3 | H165: 20 | I165: =COUNTIF(入力シート!$L$2:$L$1000,"3-20") -> 0 | J165: 1 | K165: 1
A166: 9 | B166: 3 | C166: =COUNTIF(入力シート!$L$2:$L$1000,"9-3") -> 0 | D166: 1 | E166: 1 | G166: 4 | H166: 1 | I166: =COUNTIF(入力シート!$L$2:$L$1000,"4-1") -> 0 | J166: =RANK(I166,$C$64:$C$83) -> 1 | K166: 1
A167: 9 | B167: 4 | C167: =COUNTIF(入力シート!$L$2:$L$1000,"9-4") -> 0 | D167: 1 | E167: 1 | G167: 4 | H167: 2 | I167: =COUNTIF(入力シート!$L$2:$L$1000,"4-2") -> 0 | J167: 1 | K167: 1
A168: 9 | B168: 5 | C168: =COUNTIF(入力シート!$L$2:$L$1000,"9-5") -> 0 | D168: 1 | E168: 1 | G168: 4 | H168: 3 | I168: =COUNTIF(入力シート!$L$2:$L$1000,"4-3") -> 0 | J168: 1 | K168: 1
A169: 9 | B169: 6 | C169: =COUNTIF(入力シート!$L$2:$L$1000,"9-6") -> 0 | D169: 1 | E169: 1 | G169: 4 | H169: 4 | I169: =COUNTIF(入力シート!$L$2:$L$1000,"4-4") -> 0 | J169: 1 | K169: 1
A170: 9 | B170: 7 | C170: =COUNTIF(入力シート!$L$2:$L$1000,"9-7") -> 0 | D170: 1 | E170: 1 | G170: 4 | H170: 5 | I170: =COUNTIF(入力シート!$L$2:$L$1000,"4-5") -> 0 | J170: 1 | K170: 1
A171: 9 | B171: 8 | C171: =COUNTIF(入力シート!$L$2:$L$1000,"9-8") -> 0 | D171: 1 | E171: 1 | G171: 4 | H171: 6 | I171: =COUNTIF(入力シート!$L$2:$L$1000,"4-6") -> 0 | J171: 1 | K171: 1
A172: 9 | B172: 9 | C172: =COUNTIF(入力シート!$L$2:$L$1000,"9-9") -> 0 | D172: 1 | E172: 1 | G172: 4 | H172: 7 | I172: =COUNTIF(入力シート!$L$2:$L$1000,"4-7") -> 0 | J172: 1 | K172: 1
A173: 9 | B173: 10 | C173: =COUNTIF(入力シート!$L$2:$L$1000,"9-10") -> 0 | D173: 1 | E173: 1 | G173: 4 | H173: 8 | I173: =COUNTIF(入力シート!$L$2:$L$1000,"4-8") -> 0 | J173: 1 | K173: 1
A174: 9 | B174: 11 | C174: =COUNTIF(入力シート!$L$2:$L$1000,"9-11") -> 0 | D174: 1 | E174: 1 | G174: 4 | H174: 9 | I174: =COUNTIF(入力シート!$L$2:$L$1000,"4-9") -> 0 | J174: 1 | K174: 1
A175: 9 | B175: 12 | C175: =COUNTIF(入力シート!$L$2:$L$1000,"9-12") -> 0 | D175: 1 | E175: 1 | G175: 4 | H175: 11 | I175: =COUNTIF(入力シート!$L$2:$L$1000,"4-11") -> 0 | J175: 1 | K175: 1
A176: 9 | B176: 13 | C176: =COUNTIF(入力シート!$L$2:$L$1000,"9-13") -> 0 | D176: 1 | E176: 1 | G176: 4 | H176: 12 | I176: =COUNTIF(入力シート!$L$2:$L$1000,"4-12") -> 0 | J176: 1 | K176: 1
A177: 9 | B177: 14 | C177: =COUNTIF(入力シート!$L$2:$L$1000,"9-14") -> 0 | D177: 1 | E177: 1 | G177: 4 | H177: 13 | I177: =COUNTIF(入力シート!$L$2:$L$1000,"4-13") -> 0 | J177: 1 | K177: 1
A178: 9 | B178: 15 | C178: =COUNTIF(入力シート!$L$2:$L$1000,"9-15") -> 0 | D178: 1 | E178: 1 | G178: 4 | H178: 14 | I178: =COUNTIF(入力シート!$L$2:$L$1000,"4-14") -> 0 | J178: 1 | K178: 1
A179: 9 | B179: 16 | C179: =COUNTIF(入力シート!$L$2:$L$1000,"9-16") -> 0 | D179: 1 | E179: 1 | G179: 4 | H179: 15 | I179: =COUNTIF(入力シート!$L$2:$L$1000,"4-15") -> 0 | J179: 1 | K179: 1
A180: 9 | B180: 17 | C180: =COUNTIF(入力シート!$L$2:$L$1000,"9-17") -> 0 | D180: 1 | E180: 1 | G180: 4 | H180: 16 | I180: =COUNTIF(入力シート!$L$2:$L$1000,"4-16") -> 0 | J180: 1 | K180: 1
A181: 9 | B181: 18 | C181: =COUNTIF(入力シート!$L$2:$L$1000,"9-18") -> 0 | D181: 1 | E181: 1 | G181: 4 | H181: 17 | I181: =COUNTIF(入力シート!$L$2:$L$1000,"4-17") -> 0 | J181: 1 | K181: 1
A182: 9 | B182: 19 | C182: =COUNTIF(入力シート!$L$2:$L$1000,"9-19") -> 0 | D182: 1 | E182: 1 | G182: 4 | H182: 18 | I182: =COUNTIF(入力シート!$L$2:$L$1000,"4-18") -> 0 | J182: 1 | K182: 1
A183: 9 | B183: 20 | C183: =COUNTIF(入力シート!$L$2:$L$1000,"9-20") -> 0 | D183: 1 | E183: 1 | G183: 4 | H183: 19 | I183: =COUNTIF(入力シート!$L$2:$L$1000,"4-19") -> 0 | J183: 1 | K183: 1
A184: 10 | B184: 1 | C184: =COUNTIF(入力シート!$L$2:$L$1000,"10-1") -> 0 | D184: =RANK(C184,$C$184:$C$203) -> 1 | E184: 1 | G184: 4 | H184: 20 | I184: =COUNTIF(入力シート!$L$2:$L$1000,"4-20") -> 0 | J184: 1 | K184: 1
A185: 10 | B185: 2 | C185: =COUNTIF(入力シート!$L$2:$L$1000,"10-2") -> 0 | D185: =RANK(C185,$C$184:$C$203) -> 1 | E185: 1 | G185: 5 | H185: 1 | I185: =COUNTIF(入力シート!$L$2:$L$1000,"5-1") -> 0 | J185: =RANK(I185,$C$84:$C$103) -> 1 | K185: 1
A186: 10 | B186: 3 | C186: =COUNTIF(入力シート!$L$2:$L$1000,"10-3") -> 0 | D186: 1 | E186: 1 | G186: 5 | H186: 2 | I186: =COUNTIF(入力シート!$L$2:$L$1000,"5-2") -> 0 | J186: 1 | K186: 1
A187: 10 | B187: 4 | C187: =COUNTIF(入力シート!$L$2:$L$1000,"10-4") -> 0 | D187: 1 | E187: 1 | G187: 5 | H187: 3 | I187: =COUNTIF(入力シート!$L$2:$L$1000,"5-3") -> 0 | J187: 1 | K187: 1
A188: 10 | B188: 5 | C188: =COUNTIF(入力シート!$L$2:$L$1000,"10-5") -> 0 | D188: 1 | E188: 1 | G188: 5 | H188: 7 | I188: =COUNTIF(入力シート!$L$2:$L$1000,"5-7") -> 0 | J188: 1 | K188: 1
A189: 10 | B189: 6 | C189: =COUNTIF(入力シート!$L$2:$L$1000,"10-6") -> 0 | D189: 1 | E189: 1 | G189: 5 | H189: 8 | I189: =COUNTIF(入力シート!$L$2:$L$1000,"5-8") -> 0 | J189: 1 | K189: 1
A190: 10 | B190: 7 | C190: =COUNTIF(入力シート!$L$2:$L$1000,"10-7") -> 0 | D190: 1 | E190: 1 | G190: 5 | H190: 9 | I190: =COUNTIF(入力シート!$L$2:$L$1000,"5-9") -> 0 | J190: 1 | K190: 1
A191: 10 | B191: 8 | C191: =COUNTIF(入力シート!$L$2:$L$1000,"10-8") -> 0 | D191: 1 | E191: 1 | G191: 5 | H191: 10 | I191: =COUNTIF(入力シート!$L$2:$L$1000,"5-10") -> 0 | J191: 1 | K191: 1
A192: 10 | B192: 9 | C192: =COUNTIF(入力シート!$L$2:$L$1000,"10-9") -> 0 | D192: 1 | E192: 1 | G192: 5 | H192: 11 | I192: =COUNTIF(入力シート!$L$2:$L$1000,"5-11") -> 0 | J192: 1 | K192: 1
A193: 10 | B193: 10 | C193: =COUNTIF(入力シート!$L$2:$L$1000,"10-10") -> 0 | D193: 1 | E193: 1 | G193: 5 | H193: 13 | I193: =COUNTIF(入力シート!$L$2:$L$1000,"5-13") -> 0 | J193: 1 | K193: 1
A194: 10 | B194: 11 | C194: =COUNTIF(入力シート!$L$2:$L$1000,"10-11") -> 0 | D194: 1 | E194: 1 | G194: 5 | H194: 14 | I194: =COUNTIF(入力シート!$L$2:$L$1000,"5-14") -> 0 | J194: 1 | K194: 1
A195: 10 | B195: 12 | C195: =COUNTIF(入力シート!$L$2:$L$1000,"10-12") -> 0 | D195: 1 | E195: 1 | G195: 5 | H195: 15 | I195: =COUNTIF(入力シート!$L$2:$L$1000,"5-15") -> 0 | J195: 1 | K195: 1
A196: 10 | B196: 13 | C196: =COUNTIF(入力シート!$L$2:$L$1000,"10-13") -> 0 | D196: 1 | E196: 1 | G196: 5 | H196: 17 | I196: =COUNTIF(入力シート!$L$2:$L$1000,"5-17") -> 0 | J196: 1 | K196: =RANK(I196,$C$4:$C$403) -> 1
A197: 10 | B197: 14 | C197: =COUNTIF(入力シート!$L$2:$L$1000,"10-14") -> 0 | D197: 1 | E197: =RANK(C197,$C$4:$C$403) -> 1 | G197: 5 | H197: 19 | I197: =COUNTIF(入力シート!$L$2:$L$1000,"5-19") -> 0 | J197: 1 | K197: 1
A198: 10 | B198: 15 | C198: =COUNTIF(入力シート!$L$2:$L$1000,"10-15") -> 0 | D198: 1 | E198: 1 | G198: 5 | H198: 20 | I198: =COUNTIF(入力シート!$L$2:$L$1000,"5-20") -> 0 | J198: 1 | K198: 1
A199: 10 | B199: 16 | C199: =COUNTIF(入力シート!$L$2:$L$1000,"10-16") -> 0 | D199: 1 | E199: 1 | G199: 6 | H199: 1 | I199: =COUNTIF(入力シート!$L$2:$L$1000,"6-1") -> 0 | J199: =RANK(I199,$C$104:$C$123) -> 1 | K199: 1
A200: 10 | B200: 17 | C200: =COUNTIF(入力シート!$L$2:$L$1000,"10-17") -> 0 | D200: 1 | E200: 1 | G200: 6 | H200: 2 | I200: =COUNTIF(入力シート!$L$2:$L$1000,"6-2") -> 0 | J200: 1 | K200: 1
A201: 10 | B201: 18 | C201: =COUNTIF(入力シート!$L$2:$L$1000,"10-18") -> 0 | D201: 1 | E201: 1 | G201: 6 | H201: 3 | I201: =COUNTIF(入力シート!$L$2:$L$1000,"6-3") -> 0 | J201: 1 | K201: 1
A202: 10 | B202: 19 | C202: =COUNTIF(入力シート!$L$2:$L$1000,"10-19") -> 0 | D202: 1 | E202: 1 | G202: 6 | H202: 4 | I202: =COUNTIF(入力シート!$L$2:$L$1000,"6-4") -> 0 | J202: 1 | K202: 1
... 201 more rows
